Amount (�),Supplier,Service ,Division,Cost Centre,Cost Centre Code,Expenditure Category,Date Paid,Type,Transaction Reference,Dept
"7,336,011.50",Nottinghamshire County Council,Collection Fund,Precepting Authorities,Notts Cc Precept & Ndr Share,5930,Precept Paid,15/10/2019,Collection Fund Accounts,95533,FINANCE & CORPORATE SERVICES
"7,336,011.50",Nottinghamshire County Council,Collection Fund,Precepting Authorities,Notts Cc Precept & Ndr Share,5930,Precept Paid,19/11/2019,Collection Fund Accounts,95521,FINANCE & CORPORATE SERVICES
"7,336,011.50",Nottinghamshire County Council,Collection Fund,Precepting Authorities,Notts Cc Precept & Ndr Share,5930,Precept Paid,23/12/2019,Collection Fund Accounts,95534,FINANCE & CORPORATE SERVICES
"937,076.00",Notts Police & Crime Commissioner,Collection Fund,Precepting Authorities,Notts Police Precept & Ndr,5932,Precept Paid,15/10/2019,Collection Fund Accounts,95541,FINANCE & CORPORATE SERVICES
"937,076.00",Notts Police & Crime Commissioner,Collection Fund,Precepting Authorities,Notts Police Precept & Ndr,5932,Precept Paid,19/11/2019,Collection Fund Accounts,95530,FINANCE & CORPORATE SERVICES
"937,076.00",Notts Police & Crime Commissioner,Collection Fund,Precepting Authorities,Notts Police Precept & Ndr,5932,Precept Paid,23/12/2019,Collection Fund Accounts,95542,FINANCE & CORPORATE SERVICES
"366,321.00",Notts Fire And Rescue Service,Collection Fund,Precepting Authorities,Notts Fire Precept & Ndr,5933,Precept Paid,15/10/2019,Collection Fund Accounts,95537,FINANCE & CORPORATE SERVICES
"366,321.00",Notts Fire And Rescue Service,Collection Fund,Precepting Authorities,Notts Fire Precept & Ndr,5933,Precept Paid,19/11/2019,Collection Fund Accounts,95525,FINANCE & CORPORATE SERVICES
"366,321.00",Notts Fire And Rescue Service,Collection Fund,Precepting Authorities,Notts Fire Precept & Ndr,5933,Precept Paid,23/12/2019,Collection Fund Accounts,95538,FINANCE & CORPORATE SERVICES
"138,489.57",Streetwise Environmental Ltd,Neighbourhoods,Waste & Fleet Management,Streetwise Contract,8301,Contractors-Third Party,28/10/2019,Third Party Payments,100748,NEIGHBOURHOODS
"138,489.57",Streetwise Environmental Ltd,Neighbourhoods,Waste & Fleet Management,Streetwise Contract,8301,Contractors-Third Party,19/11/2019,Third Party Payments,101628,NEIGHBOURHOODS
"138,489.57",Streetwise Environmental Ltd,Neighbourhoods,Waste & Fleet Management,Streetwise Contract,8301,Contractors-Third Party,23/12/2019,Third Party Payments,102527,NEIGHBOURHOODS
"129,841.00",Trent Valley Internal Drainage Board,Finance & Corporate Services,Financial Services,Internal Drainage Board Levies,1047,Nndr,22/11/2019,Premises Related Expenditure,95514,FINANCE & CORPORATE SERVICES
"118,655.00",Nottingham City Council,Capital Expenditure,Transformation & Innovation,Abbey Road Redevelopment,0312,Olas - Nottm City Council,29/11/2019,Third Party Payments,102063,CAPITAL
"98,294.68",Via East Midlands Ltd,Liabilities,Long Term Liabilities,Arena 14/01290/Ful Transport,6756,Balance Sheet Exp In The Year,21/10/2019,Balance Sheet Exp In The Year,99029,FINANCE & CORPORATE SERVICES
"84,116.98",Thomas Bow Ltd,Capital Expenditure,Transformation & Innovation,Cotgrave Masterplan,0303,Legal & Professional Services,15/10/2019,Supplies & Services,100742,CAPITAL
"75,000.00",Radcliffe On Trent Parish Council,Capital Expenditure,Communties,Skateboard Parks,0667,Grants,26/11/2019,Supplies & Services,101759,CAPITAL
"74,195.00",Nottingham City Council,Capital Expenditure,Transformation & Innovation,Abbey Road Redevelopment,0312,Olas - Nottm City Council,02/10/2019,Third Party Payments,97973,CAPITAL
"44,097.14",Nottinghamshire County Council,Neighbourhoods,Leisure Contracts & Car Parks,East Leake Leisure Centre,1700,Olas - Notts County Council,03/12/2019,Third Party Payments,101877,FINANCE & CORPORATE SERVICES
"44,097.14",Nottinghamshire County Council,Neighbourhoods,Leisure Contracts & Car Parks,East Leake Leisure Centre,1700,Olas - Notts County Council,03/12/2019,Third Party Payments,101879,FINANCE & CORPORATE SERVICES
"44,097.14",Nottinghamshire County Council,Neighbourhoods,Leisure Contracts & Car Parks,East Leake Leisure Centre,1700,Olas - Notts County Council,03/12/2019,Third Party Payments,101880,FINANCE & CORPORATE SERVICES
"44,097.14",Nottinghamshire County Council,Neighbourhoods,Leisure Contracts & Car Parks,East Leake Leisure Centre,1700,Olas - Notts County Council,03/12/2019,Third Party Payments,101881,FINANCE & CORPORATE SERVICES
"44,097.14",Nottinghamshire County Council,Neighbourhoods,Leisure Contracts & Car Parks,East Leake Leisure Centre,1700,Olas - Notts County Council,05/12/2019,Third Party Payments,101882,FINANCE & CORPORATE SERVICES
"43,532.10",Glen Wilson Ltd,Capital Expenditure,Neighbourhoods,Clc Pool Ventilation,0343,Contractors-Third Party,15/10/2019,Third Party Payments,100442,CAPITAL
"43,405.08",Nottinghamshire County Council,Neighbourhoods,Leisure Contracts & Car Parks,East Leake Leisure Centre,1700,Olas - Notts County Council,03/12/2019,Third Party Payments,101878,FINANCE & CORPORATE SERVICES
"43,000.00",Radcliffe On Trent Parish Council,Capital Expenditure,Communties,Skateboard Parks,0667,Grants,23/12/2019,Supplies & Services,102647,CAPITAL
"42,516.00",Henry Riley Llp,Capital Expenditure,Transformation & Innovation,Bingham Leisure Hub,0314,Contractors-Third Party,11/11/2019,Third Party Payments,101563,CAPITAL
"42,515.00",Henry Riley Llp,Capital Expenditure,Transformation & Innovation,Bingham Leisure Hub,0314,Contractors-Third Party,16/12/2019,Third Party Payments,102483,CAPITAL
"41,000.00",Trent Bridge Community Trust,Communities,Community Development,Young,1048,Legal & Professional Services,16/12/2019,Supplies & Services,102188,COMMUNITIES
"38,546.00",P J Lilley Limited,Capital Expenditure,Transformation & Innovation,Bingham Leisure Hub,0314,Contractors-Third Party,31/10/2019,Third Party Payments,100747,CAPITAL
"38,422.00",Henry Riley Llp,Capital Expenditure,Transformation & Innovation,Bingham Leisure Hub,0314,Contractors-Third Party,15/10/2019,Third Party Payments,100602,CAPITAL
"33,341.10",As Enterprises Limited,Capital Expenditure,Transformation & Innovation,Cotgrave Masterplan,0303,Legal & Professional Services,03/12/2019,Supplies & Services,102083,CAPITAL
"33,301.39",Nottingham City Council,Neighbourhoods,Waste & Fleet Management,Garage,8700,Contractors-Transport,16/12/2019,Transport Related Expenditure,102489,NEIGHBOURHOODS
"32,297.84",Nottingham City Council,Neighbourhoods,Waste & Fleet Management,Garage,8700,Contractors-Transport,29/11/2019,Transport Related Expenditure,102081,NEIGHBOURHOODS
"27,900.39",Thomas Bow Ltd,Capital Expenditure,Transformation & Innovation,Cotgrave Masterplan,0303,Legal & Professional Services,19/11/2019,Supplies & Services,101698,CAPITAL
"27,742.78",Nottingham City Council,Neighbourhoods,Waste & Fleet Management,Fleet,8600,Diesel,19/11/2019,Transport Related Expenditure,101690,NEIGHBOURHOODS
"26,979.39",Nottingham City Council,Neighbourhoods,Waste & Fleet Management,Fleet,8600,Diesel,15/10/2019,Transport Related Expenditure,100626,NEIGHBOURHOODS
"26,072.00",Henry Riley Llp,Capital Expenditure,Transformation & Innovation,Bingham Leisure Hub,0314,Legal & Professional Services,02/10/2019,Supplies & Services,100086,CAPITAL
"25,289.12",Nottingham City Council,Neighbourhoods,Waste & Fleet Management,Fleet,8600,Diesel,23/12/2019,Transport Related Expenditure,102691,NEIGHBOURHOODS
"24,323.18",Nottingham City Council,Neighbourhoods,Waste & Fleet Management,Garage,8700,Contractors-Transport,21/10/2019,Transport Related Expenditure,100624,NEIGHBOURHOODS
"20,000.00",Allan Joyce Architects Ltd,Capital Expenditure,Transformation & Innovation,Cotgrave Phase 2,0387,Legal & Professional Services,19/11/2019,Supplies & Services,101200,CAPITAL
"19,642.50",Western Power Distribution (East Mids),Capital Expenditure,Transformation & Innovation,Cotgrave Phase 2,0387,Legal & Professional Services,11/10/2019,Supplies & Services,100681,CAPITAL
"19,639.00",Trent Valley Plumbing & Build,Capital Expenditure,Neighbourhoods,Disabled Facilities Grant,0332,Grants,29/11/2019,Supplies & Services,102033,CAPITAL
"19,000.00",Central Fire Systems Ltd,Capital Expenditure,Neighbourhoods,Blc Enhancements,0417,Other Equipment/Materials,28/10/2019,Supplies & Services,100536,CAPITAL
"16,676.26",Henry Riley Llp,Capital Expenditure,Transformation & Innovation,Bingham Leisure Hub,0314,Legal & Professional Services,16/12/2019,Supplies & Services,102484,CAPITAL
"15,533.00",Gedling Borough Council,Finance & Corporate Services,Financial Services,Financial Services,4705,Contractors-Supplies & Servs,15/10/2019,Supplies & Services,100759,FINANCE & CORPORATE SERVICES
"15,067.00",Central Fire Systems Ltd,Capital Expenditure,Neighbourhoods,Blc Enhancements,0417,Other Equipment/Materials,19/11/2019,Supplies & Services,101335,CAPITAL
"15,000.00",Cotgrave Town Council,Capital Expenditure,Communties,Capital Grant Funding,0651,Grants,16/12/2019,Supplies & Services,102180,CAPITAL
"15,000.00",Gotham Memorial Hall/ Recreation Ground Trust,Capital Expenditure,Communties,Capital Grant Funding,0651,Grants,16/12/2019,Supplies & Services,102179,CAPITAL
"14,143.24",Advanced Business Solutions,Finance & Corporate Services,Ict,It Rechargeable Costs,4722,Maintenance Contracts - S&S,29/10/2019,Supplies & Services,100860,TRANSFORMATION
"14,043.00",Wilson Bowden Developments Ltd,Capital Expenditure,Transformation & Innovation,Cotgrave Masterplan,0303,Legal & Professional Services,31/10/2019,Supplies & Services,101262,CAPITAL
"13,445.22",Planning Inspectorate,Communities,Planning Policy,Development Plans,1232,Other Miscellaneous Expenses,02/10/2019,Supplies & Services,100256,COMMUNITIES
"12,375.00",Allan Joyce Architects Ltd,Capital Expenditure,Transformation & Innovation,Cotgrave Masterplan,0303,Legal & Professional Services,19/11/2019,Supplies & Services,101637,CAPITAL
"12,225.60",Daisy Corporate Services Trading Limited,Finance & Corporate Services,Ict,Telephones,4870,Telephone Call Charges,19/11/2019,Supplies & Services,101471,TRANSFORMATION
"11,191.55",Northgate Public Services (Uk) Ltd,Finance & Corporate Services,Ict,It Rechargeable Costs,4722,Maintenance Contracts - S&S,05/11/2019,Supplies & Services,101030,TRANSFORMATION
"10,940.81",Royal Mail Group Ltd,Assets,Current Assets,Parliamentary Election,7103,Postages,23/12/2019,Supplies & Services,102296,FINANCE & CORPORATE SERVICES
"10,937.48",Liberata Uk Ltd T/A Capacity Grid,Finance & Corporate Services,Revenues & Benefits,Council Tax,1045,Legal & Professional Services,11/10/2019,Supplies & Services,100433,FINANCE & CORPORATE SERVICES
"10,890.00",Daisy Corporate Services Trading Limited,Finance & Corporate Services,Ict,Telephones,4870,Maintenance Contracts - S&S,19/11/2019,Supplies & Services,101471,TRANSFORMATION
"10,107.45",Upgrade Options Limited,Capital Expenditure,Finance & Corporate,Ict Replacement Programme,0592,Computer Hardware,31/10/2019,Supplies & Services,101032,CAPITAL
"9,900.00",Tunstall Response Ltd,Capital Expenditure,Neighbourhoods,Assistive Technology,0335,Grants,16/12/2019,Supplies & Services,102170,CAPITAL
"9,639.00",Apw (Nottm) Ltd,Capital Expenditure,Neighbourhoods,Disabled Facilities Grant,0332,Grants,19/11/2019,Supplies & Services,101720,CAPITAL
"9,474.00",Vaughandale Construction Limited,Capital Expenditure,Neighbourhoods,Disabled Facilities Grant,0332,Grants,05/12/2019,Supplies & Services,102031,CAPITAL
"8,930.00",Trent Valley Plumbing & Build,Capital Expenditure,Neighbourhoods,Disabled Facilities Grant,0332,Grants,23/12/2019,Supplies & Services,102683,CAPITAL
"8,719.75",Virgin Media Business,Finance & Corporate Services,Ict,It Rechargeable Costs,4722,Maintenance Contracts - S&S,14/11/2019,Supplies & Services,101469,TRANSFORMATION
"8,628.00",Trent Valley Plumbing & Build,Capital Expenditure,Neighbourhoods,Disabled Facilities Grant,0332,Grants,07/11/2019,Supplies & Services,101389,CAPITAL
"8,187.82",Toot Hill School,Neighbourhoods,Leisure Contracts & Car Parks,Leisure Management Contract,1795,Gas,22/11/2019,Premises Related Expenditure,82434,FINANCE & CORPORATE SERVICES
"7,948.00",Mazars Llp,Finance & Corporate Services,Financial Services,Corporate Management,4895,External Audit Fee,15/10/2019,Supplies & Services,100455,FINANCE & CORPORATE SERVICES
"7,931.00",A R Signs Ltd,Finance & Corporate Services,"Performance, Repn & Comms",Performance And Reputation,4710,External Printing,29/11/2019,Supplies & Services,101708,FINANCE & CORPORATE SERVICES
"7,651.00",Kpmg Llp,Finance & Corporate Services,Financial Services,Corporate Management,4895,External Audit Fee,23/12/2019,Supplies & Services,102529,FINANCE & CORPORATE SERVICES
"7,471.00",A R Signs Ltd,Finance & Corporate Services,"Performance, Repn & Comms",Performance And Reputation,4710,External Printing,23/12/2019,Supplies & Services,102278,FINANCE & CORPORATE SERVICES
"7,290.50",Lodge Tyre Co.Ltd,Neighbourhoods,Waste & Fleet Management,Waste Collection,8403,Tyres,10/12/2019,Transport Related Expenditure,102347,NEIGHBOURHOODS
"7,251.50",Lodge Tyre Co.Ltd,Neighbourhoods,Waste & Fleet Management,Waste Collection,8403,Tyres,07/11/2019,Transport Related Expenditure,100363,NEIGHBOURHOODS
"7,000.00",Vaughandale Construction Limited,Capital Expenditure,Neighbourhoods,Disabled Facilities Grant,0332,Grants,05/12/2019,Supplies & Services,102032,CAPITAL
"6,750.00",P J Lilley Limited,Capital Expenditure,Transformation & Innovation,Bingham Leisure Hub,0314,Contractors-Third Party,28/10/2019,Third Party Payments,100746,CAPITAL
"6,746.20",Parkwood Leisure Ltd,Transformation,Property Services,Arena Civic Centre,4718,Electricity,23/12/2019,Premises Related Expenditure,102257,TRANSFORMATION
"6,500.00",Uk Property Rescue Ltd,Neighbourhoods,Environmental Health,Work In Default,1066,Other Miscellaneous Expenses,21/10/2019,Supplies & Services,100931,NEIGHBOURHOODS
"6,392.43",Tunstall Response Ltd,Neighbourhoods,Strategic Housing,Home Alarms,1137,Other Services,07/11/2019,Supplies & Services,101272,NEIGHBOURHOODS
"6,329.15",Liberata Uk Ltd T/A Capacity Grid,Finance & Corporate Services,Revenues & Benefits,Council Tax,1045,Legal & Professional Services,29/10/2019,Supplies & Services,100908,FINANCE & CORPORATE SERVICES
"6,265.09",Geldards Llp,Capital Expenditure,Transformation & Innovation,Bingham Leisure Hub,0314,Legal & Professional Services,16/10/2019,Supplies & Services,100361,CAPITAL
"6,000.00",East Leake Parish Council,Capital Expenditure,Communties,Skate Park Facilities The Hook,0662,Contractors-Third Party,05/12/2019,Third Party Payments,102102,CAPITAL
"6,000.00",New Dec Interiors Ltd,Capital Expenditure,Neighbourhoods,Disabled Facilities Grant,0332,Grants,05/11/2019,Supplies & Services,101359,CAPITAL
"5,851.25",Stage Connections Ltd,Communities,Community Development,Community Development,1581,Projects & Activities,17/12/2019,Supplies & Services,102490,COMMUNITIES
"5,850.00",Rsm,Finance & Corporate Services,Financial Services,Internal Audit,4708,Legal & Professional Services,21/10/2019,Supplies & Services,99387,FINANCE & CORPORATE SERVICES
"5,850.00",Rsm,Finance & Corporate Services,Financial Services,Internal Audit,4708,Legal & Professional Services,03/12/2019,Supplies & Services,102045,FINANCE & CORPORATE SERVICES
"5,828.44",Aumas Limited,Capital Expenditure,Neighbourhoods,Discretionary Top-Ups Dfgs,0333,Grants,02/10/2019,Supplies & Services,100265,CAPITAL
"5,625.18",Aumas Limited,Capital Expenditure,Neighbourhoods,Disabled Facilities Grant,0332,Grants,02/10/2019,Supplies & Services,100266,CAPITAL
"5,620.40",Hill Bros (Nottingham) Ltd,Capital Expenditure,Neighbourhoods,Disabled Facilities Grant,0332,Grants,28/10/2019,Supplies & Services,101022,CAPITAL
"5,516.00",Trent Valley Plumbing & Build,Capital Expenditure,Neighbourhoods,Disabled Facilities Grant,0332,Grants,23/12/2019,Supplies & Services,102682,CAPITAL
"5,350.00",Beechmast Ltd,Communities,Community Development,Environmental Promotion,1590,Contractors-Supplies & Servs,29/11/2019,Supplies & Services,102067,COMMUNITIES
"5,343.17",The South Wolds Academy And Sixth Form,Neighbourhoods,Leisure Contracts & Car Parks,Leisure Management Contract,1795,Premises Rents,28/10/2019,Premises Related Expenditure,100634,FINANCE & CORPORATE SERVICES
"5,245.00",Trent Valley Plumbing & Build,Capital Expenditure,Neighbourhoods,Disabled Facilities Grant,0332,Grants,05/12/2019,Supplies & Services,102242,CAPITAL
"5,164.75",Virgin Media Business,Finance & Corporate Services,Ict,It Rechargeable Costs,4722,Maintenance Contracts - S&S,14/11/2019,Supplies & Services,101468,TRANSFORMATION
"5,112.50",Lodge Tyre Co.Ltd,Neighbourhoods,Waste & Fleet Management,Waste Collection,8403,Tyres,14/11/2019,Transport Related Expenditure,101441,NEIGHBOURHOODS
"5,100.00",Via East Midlands Ltd,Communities,Planning Policy,Land Charges,1033,Other Services,21/10/2019,Supplies & Services,100863,COMMUNITIES
"5,100.00",Via East Midlands Ltd,Communities,Planning Policy,Land Charges,1033,Other Services,05/11/2019,Supplies & Services,101247,COMMUNITIES
"5,094.00",Trent Valley Plumbing & Build,Capital Expenditure,Neighbourhoods,Disabled Facilities Grant,0332,Grants,28/10/2019,Supplies & Services,101024,CAPITAL
"5,054.04",Intelligent Plans & Examinations (Ipe) Ltd,Communities,Planning Policy,Development Plans,1232,Legal & Professional Services,22/11/2019,Supplies & Services,101861,COMMUNITIES
"5,040.00",Commercial Surface Solutions Ltd,Capital Expenditure,Transformation & Innovation,Bingham Leisure Hub,0314,Contractors-Third Party,26/11/2019,Third Party Payments,101863,CAPITAL
"5,036.97",Royal Mail Group Ltd,Assets,Current Assets,Parliamentary Election,7103,Postages,23/12/2019,Supplies & Services,102499,FINANCE & CORPORATE SERVICES
"5,000.00",Zurich Municipal,Finance & Corporate Services,Financial Services,Liability Claims,4921,Excesses Paid,23/12/2019,Other Control/Suspense A/Cs,102378,FINANCE & CORPORATE SERVICES
"4,997.00",New Dec Interiors Ltd,Capital Expenditure,Neighbourhoods,Disabled Facilities Grant,0332,Grants,05/11/2019,Supplies & Services,101358,CAPITAL
"4,900.00",M.R.J.Faulks & Son Ltd,Communities,Community Development,Rushcliffe Country Park,1375,Maintenance Contracts - S&S,19/11/2019,Supplies & Services,101379,COMMUNITIES
"4,815.00",Lion Containers Ltd,Capital Expenditure,Transformation & Innovation,Bingham Leisure Hub,0314,Contractors-Third Party,23/10/2019,Third Party Payments,101029,CAPITAL
"4,702.22",Capita Business Services Ltd,Finance & Corporate Services,Revenues & Benefits,Housing Benefits Admin.,1140,Software,19/11/2019,Supplies & Services,101490,FINANCE & CORPORATE SERVICES
"4,698.00",Lodge Tyre Co.Ltd,Neighbourhoods,Waste & Fleet Management,Waste Collection,8403,Tyres,02/10/2019,Transport Related Expenditure,99656,NEIGHBOURHOODS
"4,680.00",Geldards Llp,Capital Expenditure,Transformation & Innovation,Bingham Leisure Hub,0314,Legal & Professional Services,17/12/2019,Supplies & Services,102057,CAPITAL
"4,559.00",Abbott And Mason Ltd,Capital Expenditure,Neighbourhoods,Disabled Facilities Grant,0332,Grants,28/10/2019,Supplies & Services,101021,CAPITAL
"4,522.70",Bsp Consulting,Capital Expenditure,Transformation & Innovation,Cotgrave Phase 2,0387,Legal & Professional Services,10/12/2019,Supplies & Services,102079,CAPITAL
"4,460.00",Dolphin Mobility East Mids Ltd,Capital Expenditure,Neighbourhoods,Disabled Facilities Grant,0332,Grants,28/10/2019,Supplies & Services,101019,CAPITAL
"4,435.04",Frontline Recruitment Ltd,Neighbourhoods,Waste & Fleet Management,Waste Collection,8403,Agency Staff,08/10/2019,Employee Related Expenditure,100261,NEIGHBOURHOODS
"4,358.00",Bsp Consulting,Capital Expenditure,Transformation & Innovation,Cotgrave Phase 2,0387,Legal & Professional Services,15/10/2019,Supplies & Services,100284,CAPITAL
"4,048.02",Frontline Recruitment Ltd,Neighbourhoods,Waste & Fleet Management,Waste Collection,8403,Employee Advertising,21/10/2019,Employee Related Expenditure,100729,NEIGHBOURHOODS
"4,000.00",East Leake Parish Council,Communities,Community Development,Recreational Open Spaces,1280,Grounds Maintenance,21/10/2019,Premises Related Expenditure,100881,COMMUNITIES
"3,975.00",Ep Consulting Building Services Engineers,Capital Expenditure,Transformation & Innovation,Rccc Premises 19/20,0376,Contractors-Supplies & Servs,05/11/2019,Supplies & Services,101269,CAPITAL
"3,965.00",Dolphin Mobility East Mids Ltd,Capital Expenditure,Neighbourhoods,Disabled Facilities Grant,0332,Grants,28/10/2019,Supplies & Services,101020,CAPITAL
"3,929.40",Streetwise Environmental Ltd,Communities,Community Development,Environmental Promotion,1590,Contractors-Supplies & Servs,16/12/2019,Supplies & Services,102247,COMMUNITIES
"3,880.00",Zurich Municipal,Finance & Corporate Services,Financial Services,Liability Claims,4921,Excesses Paid,19/11/2019,Other Control/Suspense A/Cs,101609,FINANCE & CORPORATE SERVICES
"3,840.00",Vinshire Plumbing & Heating Limited,Capital Expenditure,Communties,Warm Homes On Prescription,0337,Contractors-Supplies & Servs,16/12/2019,Supplies & Services,102197,CAPITAL
"3,820.52",Frontline Recruitment Ltd,Neighbourhoods,Waste & Fleet Management,Waste Collection,8403,Agency Staff,08/10/2019,Employee Related Expenditure,100449,NEIGHBOURHOODS
"3,740.00",Hodson Specialist Contractors,Neighbourhoods,Leisure Contracts & Car Parks,Leisure Management Contract,1795,Responsive Works - Buildings,10/12/2019,Premises Related Expenditure,102359,FINANCE & CORPORATE SERVICES
"3,735.00",Apw (Nottm) Ltd,Capital Expenditure,Neighbourhoods,Disabled Facilities Grant,0332,Grants,28/10/2019,Supplies & Services,101023,CAPITAL
"3,703.50",Egbert H Taylor & Co Ltd,Neighbourhoods,Waste & Fleet Management,Glass Recycling & Bring Sites,8407,Other Equipment/Materials,05/11/2019,Supplies & Services,100683,NEIGHBOURHOODS
"3,679.31",Frontline Recruitment Ltd,Neighbourhoods,Waste & Fleet Management,Waste Collection,8403,Training Expenses,14/11/2019,Employee Related Expenditure,101529,NEIGHBOURHOODS
"3,675.00",Civica Uk Ltd,Capital Expenditure,Finance & Corporate,Technical Infrastructure,0603,Computer Hardware,07/11/2019,Supplies & Services,101090,CAPITAL
"3,670.00",Live Trakway,Communities,Community Development,West Bridgford Town Centre,1875,Publicity & Promotion,03/12/2019,Supplies & Services,102107,TRANSFORMATION
"3,634.90",Yu Energy,Transformation,Property Services,Bridgford Hall,1883,Gas,15/10/2019,Premises Related Expenditure,100664,TRANSFORMATION
"3,624.39",Frontline Recruitment Ltd,Neighbourhoods,Waste & Fleet Management,Waste Collection,8403,Agency Staff,05/11/2019,Employee Related Expenditure,100912,NEIGHBOURHOODS
"3,613.93",Frontline Recruitment Ltd,Neighbourhoods,Waste & Fleet Management,Waste Collection,8403,Agency Staff,05/11/2019,Employee Related Expenditure,101102,NEIGHBOURHOODS
"3,550.46",Royal Mail Group Ltd,Assets,Current Assets,Parliamentary Election,7103,Postages,23/12/2019,Supplies & Services,102295,FINANCE & CORPORATE SERVICES
"3,547.94",The South Wolds Academy And Sixth Form,Neighbourhoods,Leisure Contracts & Car Parks,Leisure Management Contract,1795,Gas,16/12/2019,Premises Related Expenditure,102514,FINANCE & CORPORATE SERVICES
"3,537.85",As Enterprises Limited,Capital Expenditure,Transformation & Innovation,Cotgrave Masterplan,0303,Legal & Professional Services,05/12/2019,Supplies & Services,102212,CAPITAL
"3,504.41",Frontline Recruitment Ltd,Neighbourhoods,Waste & Fleet Management,Waste Collection,8403,Agency Staff,05/11/2019,Employee Related Expenditure,101327,NEIGHBOURHOODS
"3,487.96",Daisy Corporate Services Trading Limited,Finance & Corporate Services,Ict,It Rechargeable Costs,4722,Maintenance Contracts - S&S,19/11/2019,Supplies & Services,101471,TRANSFORMATION
"3,367.60",Vinshire Plumbing & Heating Limited,Capital Expenditure,Communties,Warm Homes On Prescription,0337,Contractors-Supplies & Servs,28/10/2019,Supplies & Services,101129,CAPITAL
"3,350.00",Apw (Nottm) Ltd,Capital Expenditure,Neighbourhoods,Disabled Facilities Grant,0332,Grants,29/11/2019,Supplies & Services,102034,CAPITAL
"3,288.50",Freeth Cartwright Llp,Capital Expenditure,Transformation & Innovation,Cotgrave Phase 2,0387,Legal & Professional Services,11/10/2019,Supplies & Services,100552,CAPITAL
"3,260.00",Selectamark Security Systems Plc,Neighbourhoods,Environmental Health,Community Safety,1598,Projects & Activities,28/10/2019,Supplies & Services,100731,NEIGHBOURHOODS
"3,250.00",Rsm,Finance & Corporate Services,Financial Services,Internal Audit,4708,Legal & Professional Services,21/10/2019,Supplies & Services,100149,FINANCE & CORPORATE SERVICES
"3,206.00",Trent Valley Plumbing & Build,Capital Expenditure,Neighbourhoods,Disabled Facilities Grant,0332,Grants,31/10/2019,Supplies & Services,101045,CAPITAL
"3,126.70",Severn Trent Water,Neighbourhoods,Waste & Fleet Management,Tanker Services,1948,Waste Disposal,05/11/2019,Supplies & Services,99882,NEIGHBOURHOODS
"3,126.60",Platinum Street Lighting Solutions,Neighbourhoods,Leisure Contracts & Car Parks,Car Parks,1900,Planned Maintenance Recharge,15/10/2019,Supplies & Services,100758,FINANCE & CORPORATE SERVICES
"3,120.00",Bsp Consulting,Capital Expenditure,Transformation & Innovation,Abbey Road Redevelopment,0312,Legal & Professional Services,22/11/2019,Supplies & Services,101360,CAPITAL
"3,100.00",Gee Tee Building Services,Capital Expenditure,Neighbourhoods,Disabled Facilities Grant,0332,Grants,29/11/2019,Supplies & Services,102035,CAPITAL
"3,093.33",East Leake Parish Council,Communities,Community Development,Recreational Open Spaces,1280,Grants,28/10/2019,Supplies & Services,101110,COMMUNITIES
"3,060.00",Savills Uk Limited,Capital Expenditure,Transformation & Innovation,Abbey Road Redevelopment,0312,Legal & Professional Services,16/12/2019,Supplies & Services,102357,CAPITAL
"3,034.00",Nottinghamshire County Council,Communities,Planning Policy,Land Charges,1033,Other Services,28/10/2019,Supplies & Services,100901,COMMUNITIES
"3,031.97",Bottomline Technologies Limited,Capital Expenditure,Finance & Corporate,Applications/Apps,0605,Software,17/12/2019,Supplies & Services,102512,CAPITAL
"3,000.00",Beechmast Ltd,Communities,Community Development,Environmental Promotion,1590,Contractors-Supplies & Servs,11/11/2019,Supplies & Services,101461,COMMUNITIES
"3,000.00",Bentley Project Management,Capital Expenditure,Transformation & Innovation,Cotgrave Phase 2,0387,Legal & Professional Services,16/12/2019,Supplies & Services,102248,CAPITAL
"3,000.00",Maltby & Company,Capital Expenditure,Transformation & Innovation,Abbey Road Redevelopment,0312,Contractors-Third Party,19/11/2019,Third Party Payments,101533,CAPITAL
"2,990.00",Apw (Nottm) Ltd,Capital Expenditure,Neighbourhoods,Disabled Facilities Grant,0332,Grants,23/12/2019,Supplies & Services,102684,CAPITAL
"2,927.16",Severn Trent Water,Neighbourhoods,Waste & Fleet Management,Tanker Services,1948,Waste Disposal,16/12/2019,Supplies & Services,102497,NEIGHBOURHOODS
"2,926.19",Frontline Recruitment Ltd,Neighbourhoods,Waste & Fleet Management,Waste Collection,8403,Agency Staff,29/11/2019,Employee Related Expenditure,101949,NEIGHBOURHOODS
"2,925.00",Rsm,Finance & Corporate Services,Financial Services,Internal Audit,4708,Legal & Professional Services,07/11/2019,Supplies & Services,101060,FINANCE & CORPORATE SERVICES
"2,896.18",Vip System Limited,Neighbourhoods,Environmental Health,Hackney Carriage/Private Hire,1031,Other Equipment/Materials,16/12/2019,Supplies & Services,102169,NEIGHBOURHOODS
"2,819.05",Royal Mail Group Ltd,Transformation,Bsu,Central Mail,4871,Postages,16/12/2019,Supplies & Services,102165,TRANSFORMATION
"2,763.45",Ashley Kate Hr Ltd,Transformation,Human Resources,Human Resources,4709,Employee Advertising,28/10/2019,Employee Related Expenditure,99555,TRANSFORMATION
"2,750.00",Derby Legal Services Ltd,Transformation,Property Services,Arena Civic Centre,4718,Legal & Professional Services,02/10/2019,Supplies & Services,100358,TRANSFORMATION
"2,690.84",Severn Trent Water,Neighbourhoods,Waste & Fleet Management,Tanker Services,1948,Waste Disposal,19/11/2019,Supplies & Services,101557,NEIGHBOURHOODS
"2,651.50",Broxtowe Borough Council,Neighbourhoods,Leisure Contracts & Car Parks,Car Parks,1900,Maintenance Contracts - S&S,02/10/2019,Supplies & Services,100159,FINANCE & CORPORATE SERVICES
"2,565.32",Frontline Recruitment Ltd,Neighbourhoods,Waste & Fleet Management,Waste Collection,8403,Agency Staff,19/11/2019,Employee Related Expenditure,101701,NEIGHBOURHOODS
"2,539.80",Broxtowe Borough Council,Neighbourhoods,Leisure Contracts & Car Parks,Car Parks,1900,Other Equipment/Materials,16/12/2019,Supplies & Services,102474,FINANCE & CORPORATE SERVICES
"2,525.00",Haymarket Media Group,Communities,Planning & Growth,Development Control,1161,Books & Publications,05/12/2019,Supplies & Services,101643,COMMUNITIES
"2,502.40",Obsidian Geo-Consulting Limited,Capital Expenditure,Transformation & Innovation,Abbey Road Redevelopment,0312,Legal & Professional Services,05/12/2019,Supplies & Services,101868,CAPITAL
"2,500.00",Bentley Project Management,Capital Expenditure,Transformation & Innovation,Cotgrave Phase 2,0387,Legal & Professional Services,15/10/2019,Supplies & Services,100446,CAPITAL
"2,500.00",Bentley Project Management,Capital Expenditure,Transformation & Innovation,Cotgrave Phase 2,0387,Legal & Professional Services,19/11/2019,Supplies & Services,101481,CAPITAL
"2,486.40",Ashley Kate Hr Ltd,Finance & Corporate Services,Financial Services,Suspense No Code,5224,Returned Creditors,28/10/2019,Returned Creditors,100769,FINANCE & CORPORATE SERVICES
"2,445.60",Ccs Media,Capital Expenditure,Finance & Corporate,Ict Replacement Programme,0592,Computer Hardware,19/11/2019,Supplies & Services,101252,CAPITAL
"2,421.57",Temperature Control Limited,Transformation,Property Services,Arena Civic Centre,4718,Responsive Works - Buildings,23/12/2019,Premises Related Expenditure,102506,TRANSFORMATION
"2,387.50",Frontline Recruitment Ltd,Neighbourhoods,Waste & Fleet Management,Waste Collection,8403,Agency Staff,16/12/2019,Employee Related Expenditure,102373,NEIGHBOURHOODS
"2,358.00",Bsp Consulting,Capital Expenditure,Transformation & Innovation,Cotgrave Phase 2,0387,Legal & Professional Services,05/11/2019,Supplies & Services,101053,CAPITAL
"2,358.00",Bsp Consulting,Capital Expenditure,Transformation & Innovation,Cotgrave Phase 2,0387,Legal & Professional Services,10/12/2019,Supplies & Services,102080,CAPITAL
"2,321.20",Streetwise Environmental Ltd,Capital Income,Capital Receipts,Gresham Old Pavilion Land,0952,Responsive Works - Buildings,15/10/2019,Premises Related Expenditure,99687,CAPITAL
"2,310.00",Leonie Cowen & Associates,Capital Expenditure,Transformation & Innovation,Bingham Leisure Hub,0314,Legal & Professional Services,29/11/2019,Supplies & Services,102066,CAPITAL
"2,310.00",Live Trakway,Capital Expenditure,Transformation & Innovation,Bingham Leisure Hub,0314,Contractors-Third Party,28/10/2019,Third Party Payments,100910,CAPITAL
"2,300.00",Bartec Auto Id Ltd,Finance & Corporate Services,Ict,It Rechargeable Costs,4722,Maintenance Contracts - S&S,15/10/2019,Supplies & Services,100533,TRANSFORMATION
"2,283.00",Live Trakway,Capital Expenditure,Transformation & Innovation,Bingham Leisure Hub,0314,Contractors-Third Party,19/11/2019,Third Party Payments,101357,CAPITAL
"2,222.64",Zip Heaters (Uk) Ltd,Transformation,Property Services,Arena Civic Centre,4718,Service Maintenance Contracts,15/10/2019,Premises Related Expenditure,100354,TRANSFORMATION
"2,221.04",Severn Trent Water,Neighbourhoods,Waste & Fleet Management,Tanker Services,1948,Waste Disposal,21/10/2019,Supplies & Services,100891,NEIGHBOURHOODS
"2,220.00",Adastra Hr,Finance & Corporate Services,Financial Services,Suspense No Code,5224,Returned Creditors,07/11/2019,Returned Creditors,101356,FINANCE & CORPORATE SERVICES
"2,205.00",Ludlow Hill Mot Centre,Neighbourhoods,Environmental Health,Hackney Carriage/Private Hire,1031,Contractors-Transport,19/11/2019,Transport Related Expenditure,101703,NEIGHBOURHOODS
"2,190.00",Bsp Consulting,Capital Expenditure,Transformation & Innovation,Abbey Road Redevelopment,0312,Legal & Professional Services,28/10/2019,Supplies & Services,100289,CAPITAL
"2,185.32",Print Image Network Ltd,Finance & Corporate Services,Democratic Services,Electoral Registration,1026,External Printing,16/12/2019,Supplies & Services,102259,FINANCE & CORPORATE SERVICES
"2,183.16",Service Level Management Ltd,Transformation,Bsu,Central Mail,4871,Postages,23/12/2019,Supplies & Services,102205,TRANSFORMATION
"2,182.00",Henson'S Catering Co,Communities,Community Development,Community Development,1581,Projects & Activities,10/12/2019,Supplies & Services,102381,COMMUNITIES
"2,160.00",Parkwood Leisure Ltd,Neighbourhoods,Leisure Contracts & Car Parks,Leisure Management Contract,1795,D.B.S Checks - Employees,11/10/2019,Employee Related Expenditure,100146,FINANCE & CORPORATE SERVICES
"2,045.25",County Fencing,Neighbourhoods,Waste & Fleet Management,Glass Recycling & Bring Sites,8407,Other Equipment/Materials,07/11/2019,Supplies & Services,101374,NEIGHBOURHOODS
"2,043.65",Streetwise Environmental Ltd,Capital Expenditure,Transformation & Innovation,Abbey Road Redevelopment,0312,Contractors-Third Party,29/10/2019,Third Party Payments,100903,CAPITAL
"2,011.86",Maltby & Company,Transformation,Property Services,The Point,1886,Planned Maintenance Recharge,16/12/2019,Supplies & Services,101965,TRANSFORMATION
"2,006.00",Hopkins Solicitors,Capital Expenditure,Transformation & Innovation,Cotgrave Masterplan,0303,Legal & Professional Services,15/10/2019,Supplies & Services,100765,CAPITAL
"2,000.00",1st Galaxy Fireworks Ltd,Communities,Community Development,West Bridgford Town Centre,1875,Publicity & Promotion,03/12/2019,Supplies & Services,102043,TRANSFORMATION
"1,991.00",Vinshire Plumbing & Heating Limited,Capital Expenditure,Communties,Warm Homes On Prescription,0337,Contractors-Supplies & Servs,15/10/2019,Supplies & Services,100749,CAPITAL
"1,990.00",Patco Events Ltd,Communities,Community Development,West Bridgford Town Centre,1875,Publicity & Promotion,16/12/2019,Supplies & Services,102202,TRANSFORMATION
"1,940.34",Prism Medical Uk Ltd,Capital Expenditure,Neighbourhoods,Disabled Facilities Grant,0332,Grants,16/12/2019,Supplies & Services,102457,CAPITAL
"1,920.00",Challenge Consulting,Transformation,Human Resources,Corporate Training,4893,Training Expenses,02/10/2019,Employee Related Expenditure,99943,TRANSFORMATION
"1,910.00",Gedling Borough Council,Finance & Corporate Services,Democratic Services,Borough Council Elections,1021,Contractors-Supplies & Servs,15/10/2019,Supplies & Services,100760,FINANCE & CORPORATE SERVICES
"1,892.50",Notts Police & Crime Commissioner,Neighbourhoods,Environmental Health,Community Safety,1598,Projects & Activities,28/10/2019,Supplies & Services,100595,NEIGHBOURHOODS
"1,877.97",Advanced Business Solutions,Capital Expenditure,Finance & Corporate,Digital Strategy,0604,Software,26/11/2019,Supplies & Services,101886,CAPITAL
"1,865.00",Hmrc,Finance & Corporate Services,Financial Services,Apprenticeship Levy,1043,Other Services,08/10/2019,Supplies & Services,100473,FINANCE & CORPORATE SERVICES
"1,860.00",Baker Consultants Ltd,Communities,Planning & Growth,Development Control,1161,Legal & Professional Services,15/10/2019,Supplies & Services,100344,COMMUNITIES
"1,858.40",Print Image Network Ltd,Finance & Corporate Services,Democratic Services,Electoral Registration,1026,External Printing,19/11/2019,Supplies & Services,101382,FINANCE & CORPORATE SERVICES
"1,836.00",Hmrc,Finance & Corporate Services,Financial Services,Apprenticeship Levy,1043,Other Services,31/10/2019,Supplies & Services,101074,FINANCE & CORPORATE SERVICES
"1,835.51",Royal Mail Group Ltd,Transformation,Bsu,Central Mail,4871,Postages,11/10/2019,Supplies & Services,100160,TRANSFORMATION
"1,823.50",Jne Security Ltd,Neighbourhoods,Environmental Health,Community Safety,1598,Projects & Activities,04/10/2019,Supplies & Services,100085,NEIGHBOURHOODS
"1,780.00",Hmrc,Finance & Corporate Services,Financial Services,Apprenticeship Levy,1043,Other Services,22/11/2019,Supplies & Services,101776,FINANCE & CORPORATE SERVICES
"1,778.86",Nsl Limited,Neighbourhoods,Leisure Contracts & Car Parks,Car Parks,1900,Legal & Professional Services,19/11/2019,Supplies & Services,101326,FINANCE & CORPORATE SERVICES
"1,770.14",Service Level Management Ltd,Transformation,Bsu,Central Mail,4871,Postages,02/10/2019,Supplies & Services,99812,TRANSFORMATION
"1,755.00",Ludlow Hill Mot Centre,Neighbourhoods,Environmental Health,Hackney Carriage/Private Hire,1031,Contractors-Transport,15/10/2019,Transport Related Expenditure,100535,NEIGHBOURHOODS
"1,753.48",Nsl Limited,Neighbourhoods,Leisure Contracts & Car Parks,Car Parks,1900,Maintenance Contracts - S&S,15/10/2019,Supplies & Services,100369,FINANCE & CORPORATE SERVICES
"1,748.80",Nsl Limited,Neighbourhoods,Leisure Contracts & Car Parks,Car Parks,1900,Maintenance Contracts - S&S,16/12/2019,Supplies & Services,102166,FINANCE & CORPORATE SERVICES
"1,732.50",Carrington West Limited,Communities,Planning & Growth,Development Control,1161,Agency Staff,31/10/2019,Employee Related Expenditure,101056,COMMUNITIES
"1,731.00",Medigold Health Consultancy Ltd,Transformation,Human Resources,Human Resources,4709,Occupational Health,21/10/2019,Employee Related Expenditure,99819,TRANSFORMATION
"1,722.28",Edf Energy,Neighbourhoods,Leisure Contracts & Car Parks,Car Parks,1900,Electricity,05/11/2019,Premises Related Expenditure,101018,FINANCE & CORPORATE SERVICES
"1,717.83",Service Level Management Ltd,Transformation,Bsu,Central Mail,4871,Postages,05/11/2019,Supplies & Services,101211,TRANSFORMATION
"1,680.00",Blachere Illumination Uk Ltd,Communities,Community Development,West Bridgford Town Centre,1875,Projects & Activities,21/10/2019,Supplies & Services,100387,TRANSFORMATION
"1,650.00",Carrington West Limited,Communities,Planning & Growth,Development Control,1161,Agency Staff,16/12/2019,Employee Related Expenditure,102368,COMMUNITIES
"1,630.05",Telefonica Uk Limited,Finance & Corporate Services,Ict,Telephones,4870,Mobiles,11/11/2019,Supplies & Services,100917,TRANSFORMATION
"1,620.00",Crimson Fire Risk Services Ltd,Capital Expenditure,Transformation & Innovation,Bingham Leisure Hub,0314,Contractors-Third Party,11/10/2019,Third Party Payments,100148,CAPITAL
"1,612.00",Nottinghamshire County Council,Communities,Planning Policy,Land Charges,1033,Other Services,28/10/2019,Supplies & Services,100946,COMMUNITIES
"1,607.00",A.T Alarms,Capital Expenditure,Transformation & Innovation,Bingham Leisure Hub,0314,Contractors-Third Party,15/10/2019,Third Party Payments,100258,CAPITAL
"1,595.00",Daylight Solutions Ltd,Transformation,Property Services,Arena Civic Centre,4718,Service Maintenance Contracts,15/10/2019,Premises Related Expenditure,100463,TRANSFORMATION
"1,595.00",Westcotes House Ltd,Neighbourhoods,Strategic Housing,Homeless B&B,1110,Housing-Emergency Accommodn,07/11/2019,Supplies & Services,101462,NEIGHBOURHOODS
"1,592.41",Elsies Attic Limited,Liabilities,Long Term Liabilities,Leasehold Deposits,6623,Cash Received,17/12/2019,Cash Received,102372,COMMUNITIES
"1,550.00",Weightmans Llp,Neighbourhoods,Leisure Contracts & Car Parks,Leisure Management Contract,1795,Feasibility Study,16/10/2019,Supplies & Services,100459,FINANCE & CORPORATE SERVICES
"1,540.41",British Gas Business,Communities,Community Development,Gresham,8950,Electricity,17/12/2019,Premises Related Expenditure,102537,COMMUNITIES
"1,533.54",Gedling Borough Council,Assets,Current Assets,European Election,7102,Election Fees,21/10/2019,Employee Related Expenditure,100943,FINANCE & CORPORATE SERVICES
"1,526.50",Central Fire Systems Ltd,Transformation,Property Services,Castle Donington,1863,Responsive Works - Buildings,23/12/2019,Premises Related Expenditure,101977,NEIGHBOURHOODS
"1,512.50",Carrington West Limited,Communities,Planning & Growth,Development Control,1161,Agency Staff,28/10/2019,Employee Related Expenditure,100902,COMMUNITIES
"1,500.00",Engineering Services Partnership Ltd,Capital Expenditure,Transformation & Innovation,Abbey Road Redevelopment,0312,Legal & Professional Services,21/10/2019,Supplies & Services,100276,CAPITAL
"1,500.00",Link Treasury Services Ltd,Finance & Corporate Services,Financial Services,Financial Services,4705,Training Expenses,24/12/2019,Employee Related Expenditure,102556,FINANCE & CORPORATE SERVICES
"1,500.00",Notts County Fc Community Programme,Communities,Community Development,Health Development,1058,Grants,29/11/2019,Supplies & Services,100158,COMMUNITIES
"1,500.00",Uk Property Rescue Ltd,Neighbourhoods,Environmental Health,Work In Default,1066,Fees & Charges - General,21/10/2019,Income,100932,NEIGHBOURHOODS
"1,497.00",Freeths Llp,Capital Expenditure,Transformation & Innovation,Cotgrave Phase 2,0387,Legal & Professional Services,14/11/2019,Supplies & Services,101630,CAPITAL
"1,478.20",Park Avenue,Communities,Planning & Growth,Development Control,1161,Agency Staff,23/12/2019,Employee Related Expenditure,102559,COMMUNITIES
"1,475.00",C A Wood T/A Orange Wood Design,Finance & Corporate Services,"Performance, Repn & Comms",Performance And Reputation,4710,Legal & Professional Services,19/11/2019,Supplies & Services,101679,FINANCE & CORPORATE SERVICES
"1,464.64",Telefonica Uk Limited,Finance & Corporate Services,Ict,Telephones,4870,Mobiles,16/12/2019,Supplies & Services,101756,TRANSFORMATION
"1,457.50",Carrington West Limited,Communities,Planning & Growth,Development Control,1161,Agency Staff,31/10/2019,Employee Related Expenditure,101055,COMMUNITIES
"1,457.50",Carrington West Limited,Communities,Planning & Growth,Development Control,1161,Agency Staff,05/12/2019,Employee Related Expenditure,101976,COMMUNITIES
"1,456.73",Telefonica Uk Limited,Finance & Corporate Services,Ict,Telephones,4870,Mobiles,15/10/2019,Supplies & Services,100053,TRANSFORMATION
"1,450.00",Dta Electrical,Transformation,Property Services,Castle Donington,1863,Planned Maintenance Recharge,19/11/2019,Supplies & Services,101626,NEIGHBOURHOODS
"1,449.85",Severn Trent Water,Capital Expenditure,Transformation & Innovation,Cotgrave Phase 2,0387,Legal & Professional Services,11/10/2019,Supplies & Services,100659,CAPITAL
"1,443.75",Carrington West Limited,Communities,Planning & Growth,Development Control,1161,Agency Staff,23/12/2019,Employee Related Expenditure,102369,COMMUNITIES
"1,434.22",Service Level Management Ltd,Transformation,Bsu,Central Mail,4871,Postages,23/12/2019,Supplies & Services,102182,TRANSFORMATION
"1,430.00",Carrington West Limited,Communities,Planning & Growth,Development Control,1161,Agency Staff,02/10/2019,Employee Related Expenditure,100080,COMMUNITIES
"1,430.00",Carrington West Limited,Communities,Planning & Growth,Development Control,1161,Agency Staff,02/10/2019,Employee Related Expenditure,100169,COMMUNITIES
"1,430.00",Carrington West Limited,Communities,Planning & Growth,Development Control,1161,Agency Staff,19/11/2019,Employee Related Expenditure,101543,COMMUNITIES
"1,430.00",Carrington West Limited,Communities,Planning & Growth,Development Control,1161,Agency Staff,22/11/2019,Employee Related Expenditure,101544,COMMUNITIES
"1,430.00",Carrington West Limited,Communities,Planning & Growth,Development Control,1161,Agency Staff,29/11/2019,Employee Related Expenditure,101705,COMMUNITIES
"1,429.85",Park Avenue,Communities,Planning & Growth,Development Control,1161,Agency Staff,23/12/2019,Employee Related Expenditure,102560,COMMUNITIES
"1,425.95",Platinum Street Lighting Solutions,Neighbourhoods,Leisure Contracts & Car Parks,Leisure Management Contract,1795,Planned Maintenance Recharge,15/10/2019,Supplies & Services,100758,FINANCE & CORPORATE SERVICES
"1,416.80",Park Avenue,Communities,Planning & Growth,Development Control,1161,Agency Staff,15/10/2019,Employee Related Expenditure,100730,COMMUNITIES
"1,416.80",Park Avenue,Communities,Planning & Growth,Development Control,1161,Agency Staff,11/11/2019,Employee Related Expenditure,101531,COMMUNITIES
"1,411.85",Park Avenue,Communities,Planning & Growth,Development Control,1161,Agency Staff,15/10/2019,Employee Related Expenditure,100259,COMMUNITIES
"1,409.49",Frontline Recruitment Ltd,Neighbourhoods,Waste & Fleet Management,Waste Collection,8403,Agency Staff,16/12/2019,Employee Related Expenditure,102501,NEIGHBOURHOODS
"1,406.25",Live 9 Events Ltd,Liabilities,Long Term Liabilities,Leasehold Deposits,6623,Balance Sheet Exp In The Year,16/12/2019,Balance Sheet Exp In The Year,102408,COMMUNITIES
"1,406.00",Park Avenue,Communities,Planning & Growth,Development Control,1161,Agency Staff,15/10/2019,Employee Related Expenditure,100732,COMMUNITIES
"1,406.00",Park Avenue,Communities,Planning & Growth,Development Control,1161,Agency Staff,22/11/2019,Employee Related Expenditure,101566,COMMUNITIES
"1,406.00",Park Avenue,Communities,Planning & Growth,Development Control,1161,Agency Staff,22/11/2019,Employee Related Expenditure,101713,COMMUNITIES
"1,406.00",Park Avenue,Communities,Planning & Growth,Development Control,1161,Agency Staff,23/12/2019,Employee Related Expenditure,102401,COMMUNITIES
"1,400.00",Aylward Town Planning Ltd,Communities,Planning & Growth,Development Control,1161,Legal & Professional Services,24/12/2019,Supplies & Services,102262,COMMUNITIES
"1,400.00",Wireless Cctv Ltd,Neighbourhoods,Environmental Health,Community Safety,1598,Projects & Activities,21/10/2019,Supplies & Services,100756,NEIGHBOURHOODS
"1,399.52",Service Level Management Ltd,Transformation,Bsu,Central Mail,4871,Postages,23/12/2019,Supplies & Services,102206,TRANSFORMATION
"1,396.50",Fiona Herbert Catering,Communities,Community Development,Community Development,1581,Other Miscellaneous Expenses,08/10/2019,Supplies & Services,100556,COMMUNITIES
"1,391.78",The South Wolds Academy And Sixth Form,Neighbourhoods,Leisure Contracts & Car Parks,Leisure Management Contract,1795,Gas,22/11/2019,Premises Related Expenditure,101559,FINANCE & CORPORATE SERVICES
"1,390.00",Riba Enterprises Ltd,Transformation,Property Services,Property Services,4713,Subscriptions,23/12/2019,Supplies & Services,102286,TRANSFORMATION
"1,386.00",East Midlands Building Consultancy,Capital Expenditure,Transformation & Innovation,Cotgrave Phase 2,0387,Legal & Professional Services,31/10/2019,Supplies & Services,101276,CAPITAL
"1,380.00",Lex Leisure,Transformation,Bsu,Business Support Unit,4805,Legal & Professional Services,07/11/2019,Supplies & Services,101092,TRANSFORMATION
"1,375.00",Carrington West Limited,Communities,Planning & Growth,Development Control,1161,Agency Staff,15/10/2019,Employee Related Expenditure,100293,COMMUNITIES
"1,375.00",Carrington West Limited,Communities,Planning & Growth,Development Control,1161,Agency Staff,07/11/2019,Employee Related Expenditure,101116,COMMUNITIES
"1,357.63",Greenhalgh Kerr,Vat Control Account,Vat Control Acount,Vat Control Account,5060,Vat Adjustments (Output Tax),15/10/2019,Vat Adjustments (Output Tax),100390,FINANCE & CORPORATE SERVICES
"1,350.00",Emec Ecology,Communities,Community Development,Environmental Promotion,1590,Contractors-Supplies & Servs,21/10/2019,Supplies & Services,100880,COMMUNITIES
"1,348.94",Royal Mail Group Ltd,Transformation,Bsu,Central Mail,4871,Postages,28/10/2019,Supplies & Services,100909,TRANSFORMATION
"1,336.74",Reach Publishing Services Limited,Communities,Planning & Growth,Development Control,1161,Advertising,29/10/2019,Supplies & Services,101054,COMMUNITIES
"1,334.67",Live And Local Limited,Communities,Community Development,Arts,1550,Projects & Activities,15/10/2019,Supplies & Services,100543,COMMUNITIES
"1,334.67",Live And Local Limited,Communities,Community Development,Arts,1550,Projects & Activities,15/10/2019,Supplies & Services,100544,COMMUNITIES
"1,332.50",Smartlift Bulk Packaging,Neighbourhoods,Waste & Fleet Management,Abbey Road Depot,4001,Other Equipment/Materials,21/11/2019,Supplies & Services,101854,NEIGHBOURHOODS
"1,332.50",Smartlift Bulk Packaging,Neighbourhoods,Waste & Fleet Management,Abbey Road Depot,4001,Other Equipment/Materials,27/11/2019,Supplies & Services,101884,NEIGHBOURHOODS
"1,330.66",Service Level Management Ltd,Transformation,Bsu,Central Mail,4871,Postages,05/11/2019,Supplies & Services,101214,TRANSFORMATION
"1,314.00",Telefonica Uk Limited,Capital Expenditure,Finance & Corporate,Ict Replacement Programme,0592,Computer Hardware,19/11/2019,Supplies & Services,101047,CAPITAL
"1,300.00",Northgate Public Services (Uk) Ltd,Finance & Corporate Services,Ict,It Rechargeable Costs,4722,Maintenance Contracts - S&S,16/12/2019,Supplies & Services,102481,TRANSFORMATION
"1,295.00",The Knowledge Academy Ltd,Neighbourhoods,Waste & Fleet Management,Waste & Fleet Operations Ha,4717,Training Expenses,21/10/2019,Employee Related Expenditure,100936,COMMUNITIES
"1,273.00",Park Avenue,Communities,Planning & Growth,Development Control,1161,Agency Staff,03/12/2019,Employee Related Expenditure,101986,COMMUNITIES
"1,267.80",Thyssenkrupp Elevator Uk Limited,Transformation,Property Services,Arena Civic Centre,4718,Service Maintenance Contracts,22/11/2019,Premises Related Expenditure,101865,TRANSFORMATION
"1,264.37",Electoral Reform Services,Finance & Corporate Services,Democratic Services,Electoral Registration,1026,Telephone Response,19/11/2019,Supplies & Services,101652,FINANCE & CORPORATE SERVICES
"1,262.37",Print Image Network Ltd,Finance & Corporate Services,Democratic Services,Electoral Registration,1026,External Printing,15/10/2019,Supplies & Services,100542,FINANCE & CORPORATE SERVICES
"1,260.00",Lex Leisure,Transformation,Bsu,Business Support Unit,4805,Legal & Professional Services,15/10/2019,Supplies & Services,100353,TRANSFORMATION
"1,260.00",Lex Leisure,Transformation,Bsu,Business Support Unit,4805,Legal & Professional Services,16/12/2019,Supplies & Services,102082,TRANSFORMATION
"1,241.68",Service Level Management Ltd,Transformation,Bsu,Central Mail,4871,Postages,02/10/2019,Supplies & Services,99810,TRANSFORMATION
"1,239.55",Service Level Management Ltd,Transformation,Bsu,Central Mail,4871,Postages,23/12/2019,Supplies & Services,102207,TRANSFORMATION
"1,237.00",Platinum Street Lighting Solutions,Transformation,Property Services,Open Spaces & Footpaths,1290,Planned Maintenance Recharge,15/10/2019,Supplies & Services,100758,TRANSFORMATION
"1,200.00",Family Action,Communities,Community Development,Health Development,1058,Grants,23/12/2019,Supplies & Services,102633,COMMUNITIES
"1,196.00",The Marquee Company Limited,Communities,Community Development,Sports Development,1593,Projects & Activities,05/11/2019,Supplies & Services,101130,COMMUNITIES
"1,193.63",Royal Mail Group Ltd,Transformation,Bsu,Central Mail,4871,Postages,23/12/2019,Supplies & Services,102296,TRANSFORMATION
"1,188.89",British Gas Business,Communities,Community Development,Gresham,8950,Electricity,29/11/2019,Premises Related Expenditure,101755,COMMUNITIES
"1,177.00",Real Asset Management,Finance & Corporate Services,Ict,It Rechargeable Costs,4722,Maintenance Contracts - S&S,16/10/2019,Supplies & Services,100373,TRANSFORMATION
"1,167.75",Ep Consulting Building Services Engineers,Capital Expenditure,Transformation & Innovation,Cotgrave Masterplan,0303,Legal & Professional Services,02/10/2019,Supplies & Services,100347,CAPITAL
"1,166.83",Calor Gas Limited,Communities,Community Development,West Park,8994,Gas,28/10/2019,Premises Related Expenditure,100958,COMMUNITIES
"1,155.00",Portalplanquest Limited,Communities,Planning & Growth,Development Control,1161,Fees & Charges - General,23/12/2019,Income,102645,COMMUNITIES
"1,150.00",Mascot Management Ltd,Capital Expenditure,Transformation & Innovation,Cotgrave Phase 2,0387,Legal & Professional Services,19/11/2019,Supplies & Services,101615,CAPITAL
"1,145.00",Brian Cooper Architect,Capital Expenditure,Neighbourhoods,Discretionary Top-Ups Dfgs,0333,Grants,02/10/2019,Supplies & Services,100260,CAPITAL
"1,120.00",Zurich Municipal,Finance & Corporate Services,Financial Services,Liability Claims,4921,Excesses Paid,28/10/2019,Other Control/Suspense A/Cs,100660,FINANCE & CORPORATE SERVICES
"1,111.84",Nottingham City Council,Neighbourhoods,Waste & Fleet Management,Eastcroft Depot,4002,Olas - Nottm City Council,19/11/2019,Third Party Payments,101689,NEIGHBOURHOODS
"1,108.07",British Gas Business,Communities,Community Development,Gresham,8950,Electricity,28/10/2019,Premises Related Expenditure,100923,COMMUNITIES
"1,090.02",British Gas Business,Neighbourhoods,Waste & Fleet Management,Abbey Road Depot,4001,Electricity,05/11/2019,Premises Related Expenditure,100523,NEIGHBOURHOODS
"1,080.00",Geo Green Power Ltd,Transformation,Property Services,Arena Civic Centre,4718,Legal & Professional Services,03/12/2019,Supplies & Services,102042,TRANSFORMATION
"1,079.56",Service Level Management Ltd,Transformation,Bsu,Central Mail,4871,Postages,23/12/2019,Supplies & Services,102211,TRANSFORMATION
"1,070.00",Traffic Management Svs Ltd,Communities,Community Development,West Bridgford Town Centre,1875,Publicity & Promotion,16/12/2019,Supplies & Services,102069,TRANSFORMATION
"1,064.35",Nottingham City Council,Neighbourhoods,Waste & Fleet Management,Eastcroft Depot,4002,Olas - Nottm City Council,21/10/2019,Third Party Payments,100625,NEIGHBOURHOODS
"1,061.00",Service Level Management Ltd,Transformation,Bsu,Central Mail,4871,Postages,02/10/2019,Supplies & Services,99813,TRANSFORMATION
"1,056.16",Triscan Systems Limited,Finance & Corporate Services,Ict,It Rechargeable Costs,4722,Maintenance Contracts - S&S,17/12/2019,Supplies & Services,100889,TRANSFORMATION
"1,050.00",Imtech G&H Ltd,Neighbourhoods,Strategic Housing,Hostel Hound Lodge,1111,Planned Maintenance Recharge,22/11/2019,Supplies & Services,101702,NEIGHBOURHOODS
"1,048.07",British Gas Business,Neighbourhoods,Waste & Fleet Management,Abbey Road Depot,4001,Electricity,10/12/2019,Premises Related Expenditure,101987,NEIGHBOURHOODS
"1,046.31",Royal Mail Group Ltd,Transformation,Bsu,Central Mail,4871,Postages,19/11/2019,Supplies & Services,101470,TRANSFORMATION
"1,030.39",Service Level Management Ltd,Transformation,Bsu,Central Mail,4871,Postages,23/12/2019,Supplies & Services,102203,TRANSFORMATION
"1,027.95",Maltby & Company,Transformation,Property Services,The Point,1886,Planned Maintenance Recharge,10/12/2019,Supplies & Services,101966,TRANSFORMATION
"1,027.26",Nottingham City Council,Neighbourhoods,Waste & Fleet Management,Eastcroft Depot,4002,Olas - Nottm City Council,23/12/2019,Third Party Payments,102690,NEIGHBOURHOODS
"1,016.00",Rural Retailers Ltd,Transformation,Economic Regeneration,Bingham Market Stalls,1880,Legal & Professional Services,14/11/2019,Supplies & Services,101627,TRANSFORMATION
"1,014.20",Print Image Network Ltd,Finance & Corporate Services,Democratic Services,Electoral Registration,1026,External Printing,11/10/2019,Supplies & Services,100345,FINANCE & CORPORATE SERVICES
"1,002.99",Service Level Management Ltd,Transformation,Bsu,Central Mail,4871,Postages,02/10/2019,Supplies & Services,99811,TRANSFORMATION
"1,000.00",Bentley Project Management,Capital Expenditure,Transformation & Innovation,Cotgrave Masterplan,0303,Legal & Professional Services,15/10/2019,Supplies & Services,100445,CAPITAL
"1,000.00",Engineering Services Partnership Ltd,Capital Expenditure,Transformation & Innovation,Abbey Road Redevelopment,0312,Legal & Professional Services,19/11/2019,Supplies & Services,101536,CAPITAL
"1,000.00",New Life Baptist Church,Communities,Community Development,Health Development,1058,Grants,23/12/2019,Supplies & Services,102632,COMMUNITIES
994.61,Karter Thomas Limited,Neighbourhoods,Strategic Housing,Strategic Housing Ha,4789,Agency Staff,11/11/2019,Employee Related Expenditure,101454,NEIGHBOURHOODS
992.44,Karter Thomas Limited,Neighbourhoods,Strategic Housing,Strategic Housing Ha,4789,Agency Staff,21/10/2019,Employee Related Expenditure,100873,NEIGHBOURHOODS
987.43,The South Wolds Academy And Sixth Form,Neighbourhoods,Leisure Contracts & Car Parks,Leisure Management Contract,1795,Gas,22/11/2019,Premises Related Expenditure,101558,FINANCE & CORPORATE SERVICES
985.42,Abacus Lighting Limited,Communities,Community Development,Gresham,8950,Planned Maintenance Recharge,22/11/2019,Supplies & Services,101564,COMMUNITIES
984.00,Henderson Management,Communities,Community Development,West Bridgford Town Centre,1875,Publicity & Promotion,15/10/2019,Supplies & Services,100767,TRANSFORMATION
976.39,Karter Thomas Limited,Neighbourhoods,Strategic Housing,Strategic Housing Ha,4789,Agency Staff,29/11/2019,Employee Related Expenditure,102077,NEIGHBOURHOODS
969.60,Karter Thomas Limited,Neighbourhoods,Strategic Housing,Strategic Housing Ha,4789,Agency Staff,14/11/2019,Employee Related Expenditure,101648,NEIGHBOURHOODS
965.33,Service Level Management Ltd,Transformation,Bsu,Central Mail,4871,Postages,05/11/2019,Supplies & Services,101212,TRANSFORMATION
963.84,Castle Water Limited,Neighbourhoods,Waste & Fleet Management,Abbey Road Depot,4001,Water Charges,11/11/2019,Premises Related Expenditure,100643,NEIGHBOURHOODS
960.62,Karter Thomas Limited,Neighbourhoods,Strategic Housing,Strategic Housing Ha,4789,Agency Staff,23/12/2019,Employee Related Expenditure,102552,NEIGHBOURHOODS
954.00,Creative Festivities Limited,Finance & Corporate Services,"Performance, Repn & Comms",Performance And Reputation,4710,Other Miscellaneous Expenses,02/10/2019,Supplies & Services,100267,FINANCE & CORPORATE SERVICES
950.00,Clearwater Technology Ltd,Communities,Community Development,Gresham,8950,Responsive Works - Buildings,28/10/2019,Premises Related Expenditure,100545,COMMUNITIES
950.00,Service Level Management Ltd,Transformation,Bsu,Central Mail,4871,Postages,23/12/2019,Supplies & Services,102209,TRANSFORMATION
939.81,Service Level Management Ltd,Transformation,Bsu,Central Mail,4871,Postages,02/10/2019,Supplies & Services,99814,TRANSFORMATION
939.00,Paul Tinsley Decorating,Communities,Community Development,West Park,8994,Contractors-Supplies & Servs,16/12/2019,Supplies & Services,102488,COMMUNITIES
931.48,Service Level Management Ltd,Transformation,Bsu,Central Mail,4871,Postages,23/12/2019,Supplies & Services,102183,TRANSFORMATION
926.67,British Gas Business,Neighbourhoods,Waste & Fleet Management,Abbey Road Depot,4001,Electricity,19/11/2019,Premises Related Expenditure,101352,NEIGHBOURHOODS
925.00,Adastra Hr,Transformation,Economic Regeneration,Cotgrave Precinct,1885,Service Maintenance Contracts,10/10/2019,Premises Related Expenditure,99896,TRANSFORMATION
925.00,Adastra Hr,Transformation,Property Services,The Point,1886,Service Maintenance Contracts,10/10/2019,Premises Related Expenditure,99896,TRANSFORMATION
924.16,Service Level Management Ltd,Transformation,Bsu,Central Mail,4871,Postages,23/12/2019,Supplies & Services,102204,TRANSFORMATION
919.00,Hiring Wizard,Neighbourhoods,Environmental Health,Environmental Health Ha,4743,Employee Advertising,26/11/2019,Employee Related Expenditure,101867,NEIGHBOURHOODS
904.07,Karter Thomas Limited,Neighbourhoods,Strategic Housing,Strategic Housing Ha,4789,Agency Staff,15/10/2019,Employee Related Expenditure,100604,NEIGHBOURHOODS
904.07,Karter Thomas Limited,Neighbourhoods,Strategic Housing,Strategic Housing Ha,4789,Agency Staff,16/12/2019,Employee Related Expenditure,102249,NEIGHBOURHOODS
900.00,Marches Energy Agency,Communities,Community Development,Environmental Promotion,1590,Contractors-Supplies & Servs,03/12/2019,Supplies & Services,101891,COMMUNITIES
896.40,Reach Publishing Services Limited,Communities,Planning & Growth,Development Control,1161,Advertising,17/12/2019,Supplies & Services,102480,COMMUNITIES
892.00,Advanced Protection Systems Ltd,Transformation,Property Services,Arena Civic Centre,4718,Service Maintenance Contracts,10/12/2019,Premises Related Expenditure,102164,TRANSFORMATION
890.00,The Royal British Legion Poppy Appeal,Finance & Corporate Services,Democratic Services,Members Services,1000,Other Miscellaneous Expenses,05/12/2019,Supplies & Services,102241,FINANCE & CORPORATE SERVICES
889.32,Service Level Management Ltd,Transformation,Bsu,Central Mail,4871,Postages,05/11/2019,Supplies & Services,101210,TRANSFORMATION
880.00,St John'S Chambers,Communities,Planning Policy,Development Plans,1232,Legal & Professional Services,05/11/2019,Supplies & Services,101069,COMMUNITIES
876.88,Karter Thomas Limited,Neighbourhoods,Strategic Housing,Strategic Housing Ha,4789,Agency Staff,22/11/2019,Employee Related Expenditure,101862,NEIGHBOURHOODS
866.85,British Gas Business,Neighbourhoods,Waste & Fleet Management,Abbey Road Depot,4001,Electricity,08/10/2019,Premises Related Expenditure,99913,NEIGHBOURHOODS
859.13,Buxtons Forestry & Garden Equipment Suppliers,Communities,Community Development,Rushcliffe Country Park,1375,Purchases For Recharge,21/10/2019,Supplies & Services,100538,COMMUNITIES
854.28,Reach Publishing Services Limited,Communities,Planning & Growth,Development Control,1161,Advertising,02/10/2019,Supplies & Services,100175,COMMUNITIES
854.28,Reach Publishing Services Limited,Communities,Planning & Growth,Development Control,1161,Advertising,21/10/2019,Supplies & Services,100381,COMMUNITIES
850.00,2m Asbestos Consultancy,Capital Expenditure,Neighbourhoods,Blc Enhancements,0417,Other Equipment/Materials,14/11/2019,Supplies & Services,101614,CAPITAL
850.00,Kilworth Machinery Ltd,Communities,Community Development,Environmental Promotion,1590,Hire Of Transport/Plant,31/10/2019,Transport Related Expenditure,101248,COMMUNITIES
846.14,Killgerm Chemicals Ltd,Neighbourhoods,Environmental Health,Pest Control,1062,Fees & Charges - General,05/12/2019,Income,102172,NEIGHBOURHOODS
845.18,Platinum Street Lighting Solutions,Neighbourhoods,Leisure Contracts & Car Parks,Car Parks,1900,Planned Maintenance Recharge,19/11/2019,Supplies & Services,101258,FINANCE & CORPORATE SERVICES
845.00,Daykin Floor Renovation Ltd,Communities,Community Development,Sir Julien Cahn Pavilion,8993,Planned Maintenance Recharge,08/10/2019,Supplies & Services,100084,COMMUNITIES
840.34,Royal Mail Group Ltd,Finance & Corporate Services,Democratic Services,Electoral Registration,1026,Postages,11/10/2019,Supplies & Services,100161,FINANCE & CORPORATE SERVICES
840.00,Dta Electrical,Transformation,Economic Regeneration,Bingham Market Stalls,1880,Responsive Works - Buildings,11/11/2019,Premises Related Expenditure,101220,TRANSFORMATION
830.00,Reach Publishing Services Limited,Communities,Planning & Growth,Development Control,1161,Advertising,05/12/2019,Supplies & Services,102049,COMMUNITIES
828.70,British Gas Business,Transformation,Property Services,The Point,1886,Electricity,10/12/2019,Premises Related Expenditure,101946,TRANSFORMATION
828.00,Electoral Reform Services,Finance & Corporate Services,Democratic Services,Electoral Registration,1026,External Printing,19/11/2019,Supplies & Services,101351,FINANCE & CORPORATE SERVICES
827.25,Haven Power Limited,Transformation,Property Services,Castle Donington,1863,Electricity,26/11/2019,Premises Related Expenditure,101556,NEIGHBOURHOODS
821.31,Platinum Street Lighting Solutions,Communities,Community Development,West Park,8994,Planned Maintenance Recharge,15/10/2019,Supplies & Services,100758,COMMUNITIES
820.00,Uk Property Rescue Ltd,Neighbourhoods,Environmental Health,Work In Default,1066,Other Miscellaneous Expenses,26/11/2019,Supplies & Services,101979,NEIGHBOURHOODS
812.29,Service Level Management Ltd,Transformation,Bsu,Central Mail,4871,Postages,23/12/2019,Supplies & Services,102181,TRANSFORMATION
809.19,Reach Publishing Services Limited,Communities,Planning & Growth,Development Control,1161,Advertising,28/10/2019,Supplies & Services,100876,COMMUNITIES
808.70,The South Wolds Academy And Sixth Form,Neighbourhoods,Leisure Contracts & Car Parks,Leisure Management Contract,1795,Electricity,29/10/2019,Premises Related Expenditure,100861,FINANCE & CORPORATE SERVICES
808.50,Reach Publishing Services Limited,Communities,Planning & Growth,Development Control,1161,Advertising,21/10/2019,Supplies & Services,100599,COMMUNITIES
805.60,The South Wolds Academy And Sixth Form,Neighbourhoods,Leisure Contracts & Car Parks,Leisure Management Contract,1795,Electricity,05/12/2019,Premises Related Expenditure,102036,FINANCE & CORPORATE SERVICES
805.00,A R Signs Ltd,Transformation,Property Services,The Point,1886,Responsive Works - Buildings,21/10/2019,Premises Related Expenditure,100444,TRANSFORMATION
800.00,Beechmast Ltd,Transformation,Property Services,Open Spaces & Footpaths,1290,Responsive Works - Buildings,05/12/2019,Premises Related Expenditure,102139,TRANSFORMATION
800.00,Blachere Illumination Uk Ltd,Communities,Community Development,West Bridgford Town Centre,1875,Other Services,23/12/2019,Supplies & Services,102379,TRANSFORMATION
800.00,Nottingham City Council,Finance & Corporate Services,Democratic Services,Borough Council Elections,1021,Legal & Professional Services,31/10/2019,Supplies & Services,100896,FINANCE & CORPORATE SERVICES
800.00,Rural Retailers Ltd,Transformation,Economic Regeneration,Bingham Market Stalls,1880,Legal & Professional Services,04/10/2019,Supplies & Services,100435,TRANSFORMATION
800.00,Rural Retailers Ltd,Transformation,Economic Regeneration,Bingham Market Stalls,1880,Legal & Professional Services,05/12/2019,Supplies & Services,102226,TRANSFORMATION
799.95,Groundsman Tools And Supplies Llp,Neighbourhoods,Waste & Fleet Management,Abbey Road Depot,4001,Cleaning Equipment/Materials,29/11/2019,Supplies & Services,101890,NEIGHBOURHOODS
793.09,Maltby & Company,Transformation,Property Services,The Point,1886,Planned Maintenance Recharge,29/10/2019,Supplies & Services,100734,TRANSFORMATION
757.00,Nottinghamshire County Council,Finance & Corporate Services,"Performance, Repn & Comms",Performance And Reputation,4710,External Printing,15/10/2019,Supplies & Services,100547,FINANCE & CORPORATE SERVICES
757.00,Reach Publishing Services Limited,Communities,Planning & Growth,Development Control,1161,Advertising,17/12/2019,Supplies & Services,102479,COMMUNITIES
752.35,Karter Thomas Limited,Neighbourhoods,Strategic Housing,Strategic Housing Ha,4789,Agency Staff,11/11/2019,Employee Related Expenditure,101261,NEIGHBOURHOODS
751.00,Nottingham City Council,Finance & Corporate Services,Democratic Services,Members Services,1000,Training Expenses,21/10/2019,Employee Related Expenditure,99670,FINANCE & CORPORATE SERVICES
751.00,Streetwise Environmental Ltd,Capital Expenditure,Transformation & Innovation,Abbey Road Redevelopment,0312,Contractors-Third Party,11/11/2019,Third Party Payments,101336,CAPITAL
750.00,Fred Brown Car Repairs Limited,Neighbourhoods,Environmental Health,Hackney Carriage/Private Hire,1031,Contractors-Transport,02/10/2019,Transport Related Expenditure,100339,NEIGHBOURHOODS
750.00,Maltby & Company,Communities,Community Development,Parks & Playing Fields-Gen,8910,Responsive Works - Buildings,28/10/2019,Premises Related Expenditure,100939,COMMUNITIES
750.00,Nottingham City Council,Finance & Corporate Services,Democratic Services,Members Services,1000,Members - Training,16/10/2019,Supplies & Services,100677,FINANCE & CORPORATE SERVICES
750.00,West Bridgford Wire,Communities,Community Development,Community Development,1581,Projects & Activities,05/12/2019,Supplies & Services,102297,COMMUNITIES
749.40,Tunstall Response Ltd,Neighbourhoods,Strategic Housing,Home Alarms,1137,Other Equipment/Materials,31/10/2019,Supplies & Services,100952,NEIGHBOURHOODS
747.00,Licence Check Ltd,Finance & Corporate Services,Ict,It Rechargeable Costs,4722,Maintenance Contracts - S&S,21/10/2019,Supplies & Services,100763,TRANSFORMATION
746.16,Vip System Limited,Neighbourhoods,Environmental Health,Hackney Carriage/Private Hire,1031,Other Equipment/Materials,21/10/2019,Supplies & Services,100448,NEIGHBOURHOODS
740.18,Castle Water Limited,Neighbourhoods,Waste & Fleet Management,Abbey Road Depot,4001,Water Charges,05/11/2019,Premises Related Expenditure,100641,NEIGHBOURHOODS
740.00,A R Signs Ltd,Finance & Corporate Services,"Performance, Repn & Comms",Performance And Reputation,4710,External Printing,28/10/2019,Supplies & Services,100751,FINANCE & CORPORATE SERVICES
737.42,Corona Energy Retail 3 Ltd,Neighbourhoods,Strategic Housing,Hostel Hound Lodge,1111,Gas,21/10/2019,Premises Related Expenditure,100669,NEIGHBOURHOODS
735.08,The South Wolds Academy And Sixth Form,Neighbourhoods,Leisure Contracts & Car Parks,Leisure Management Contract,1795,Electricity,15/10/2019,Premises Related Expenditure,100234,FINANCE & CORPORATE SERVICES
735.06,Parkwood Leisure Ltd,Transformation,Property Services,Arena Civic Centre,4718,Gas,23/12/2019,Premises Related Expenditure,102257,TRANSFORMATION
734.23,Haven Power Limited,Transformation,Property Services,Castle Donington,1863,Electricity,11/10/2019,Premises Related Expenditure,100514,NEIGHBOURHOODS
730.84,Corona Energy Retail 3 Ltd,Neighbourhoods,Waste & Fleet Management,Abbey Road Depot,4001,Gas,10/12/2019,Premises Related Expenditure,102350,NEIGHBOURHOODS
721.26,The South Wolds Academy And Sixth Form,Neighbourhoods,Leisure Contracts & Car Parks,Leisure Management Contract,1795,Water Charges,29/10/2019,Premises Related Expenditure,100762,FINANCE & CORPORATE SERVICES
720.60,Castle Water Limited,Communities,Community Development,Gamston Community Hall,8992,Water Charges,28/10/2019,Premises Related Expenditure,100639,COMMUNITIES
720.00,Fred Brown Car Repairs Limited,Neighbourhoods,Environmental Health,Hackney Carriage/Private Hire,1031,Contractors-Transport,05/12/2019,Transport Related Expenditure,102173,NEIGHBOURHOODS
720.00,Nottingham City Council,Neighbourhoods,Waste & Fleet Management,Waste Collection,8403,Training Expenses,05/11/2019,Employee Related Expenditure,101277,NEIGHBOURHOODS
720.00,Wilford Lane Garage & Autocentre,Finance & Corporate Services,Financial Services,Suspense No Code,5224,Returned Creditors,10/10/2019,Returned Creditors,100464,FINANCE & CORPORATE SERVICES
707.94,Platinum Street Lighting Solutions,Communities,Community Development,Gresham,8950,Planned Maintenance Recharge,15/10/2019,Supplies & Services,100758,COMMUNITIES
702.66,Eon,Transformation,Property Services,New Offices - Cotgrave,4798,Electricity,21/10/2019,Premises Related Expenditure,100636,TRANSFORMATION
700.00,Friends Of The Lady Bay Canal,Finance & Corporate Services,Democratic Services,Members Services,1000,Grants,19/11/2019,Supplies & Services,101695,FINANCE & CORPORATE SERVICES
700.00,Licence Check Ltd,Neighbourhoods,Environmental Health,Hackney Carriage/Private Hire,1031,Other Equipment/Materials,29/11/2019,Supplies & Services,101707,NEIGHBOURHOODS
697.40,Eon,Transformation,Property Services,Unit 10 Moorbridge,4788,Electricity,19/11/2019,Premises Related Expenditure,101496,NEIGHBOURHOODS
694.38,Xerox (Uk) Limited,Finance & Corporate Services,Ict,Photocopiers,5017,Rental & Copy Charges,21/10/2019,Supplies & Services,100887,TRANSFORMATION
684.60,Cotgrave Town Council,Transformation,Economic Regeneration,Cotgrave Precinct,1885,Grounds Maintenance,11/10/2019,Premises Related Expenditure,100550,TRANSFORMATION
683.50,Bsp Consulting,Capital Expenditure,Transformation & Innovation,Cotgrave Phase 2,0387,Legal & Professional Services,16/12/2019,Supplies & Services,102398,CAPITAL
682.74,Haven Power Limited,Transformation,Property Services,Castle Donington,1863,Electricity,11/10/2019,Premises Related Expenditure,99765,NEIGHBOURHOODS
678.74,Maltby & Company,Capital Expenditure,Transformation & Innovation,Bingham Leisure Hub,0314,Contractors-Third Party,29/10/2019,Third Party Payments,100870,CAPITAL
678.40,Arden Winch & Co Ltd,Neighbourhoods,Waste & Fleet Management,Waste Collection,8403,Protective Clothing/Uniforms,11/11/2019,Supplies & Services,101131,NEIGHBOURHOODS
677.00,Nottinghamshire County Council,Finance & Corporate Services,"Performance, Repn & Comms",Performance And Reputation,4710,External Printing,28/10/2019,Supplies & Services,100947,FINANCE & CORPORATE SERVICES
676.00,The Law Society,Transformation,Legal,Legal Services,4701,Licences,05/12/2019,Supplies & Services,102071,FINANCE & CORPORATE SERVICES
672.10,Incredible Edible Todmorden,Communities,Community Development,Health Development,1058,Projects & Activities,14/11/2019,Supplies & Services,101617,COMMUNITIES
668.00,Althams,Neighbourhoods,Environmental Health,Community Safety,1598,Projects & Activities,10/12/2019,Supplies & Services,102041,NEIGHBOURHOODS
664.00,Reach Publishing Services Limited,Communities,Planning & Growth,Development Control,1161,Advertising,05/11/2019,Supplies & Services,101251,COMMUNITIES
660.00,St John'S Chambers,Communities,Planning & Growth,Development Control,1161,Legal & Professional Services,31/10/2019,Supplies & Services,101249,COMMUNITIES
657.15,Arden Winch & Co Ltd,Neighbourhoods,Waste & Fleet Management,Waste Collection,8403,Protective Clothing/Uniforms,10/12/2019,Supplies & Services,101967,NEIGHBOURHOODS
656.27,The South Wolds Academy And Sixth Form,Neighbourhoods,Leisure Contracts & Car Parks,Leisure Management Contract,1795,Water Charges,05/12/2019,Premises Related Expenditure,101950,FINANCE & CORPORATE SERVICES
655.56,Nottinghamshire County Council,Neighbourhoods,Leisure Contracts & Car Parks,Leisure Management Contract,1795,Grounds Maintenance,11/10/2019,Premises Related Expenditure,100371,FINANCE & CORPORATE SERVICES
655.56,Nottinghamshire County Council,Neighbourhoods,Leisure Contracts & Car Parks,Leisure Management Contract,1795,Grounds Maintenance,07/11/2019,Premises Related Expenditure,101371,FINANCE & CORPORATE SERVICES
655.56,Nottinghamshire County Council,Neighbourhoods,Leisure Contracts & Car Parks,Leisure Management Contract,1795,Grounds Maintenance,16/12/2019,Premises Related Expenditure,102176,FINANCE & CORPORATE SERVICES
650.00,Bright Space Solutions Ltd,Transformation,Human Resources,Corporate Training,4893,Training Expenses,21/10/2019,Employee Related Expenditure,100440,TRANSFORMATION
650.00,Browne Jacobson,Communities,Planning Policy,Development Plans,1232,Legal & Professional Services,16/12/2019,Supplies & Services,102250,COMMUNITIES
650.00,Hex Productions,Finance & Corporate Services,"Performance, Repn & Comms",Performance And Reputation,4710,Legal & Professional Services,02/10/2019,Supplies & Services,100337,FINANCE & CORPORATE SERVICES
650.00,Hex Productions,Finance & Corporate Services,"Performance, Repn & Comms",Performance And Reputation,4710,Legal & Professional Services,05/11/2019,Supplies & Services,101330,FINANCE & CORPORATE SERVICES
650.00,Hex Productions,Finance & Corporate Services,"Performance, Repn & Comms",Performance And Reputation,4710,Legal & Professional Services,10/12/2019,Supplies & Services,102225,FINANCE & CORPORATE SERVICES
650.00,Nottingham City Council,Transformation,Human Resources,Corporate Training,4893,Training Expenses,26/11/2019,Employee Related Expenditure,101761,TRANSFORMATION
649.28,Eon,Transformation,Property Services,Unit 10 Moorbridge,4788,Electricity,23/12/2019,Premises Related Expenditure,102284,NEIGHBOURHOODS
637.50,Enva England Limited,Neighbourhoods,Waste & Fleet Management,Waste Collection,8403,Other Equipment/Materials,17/12/2019,Supplies & Services,99917,NEIGHBOURHOODS
636.00,Lex Leisure,Finance & Corporate Services,Democratic Services,Borough Council Elections,1021,Hire Of Rooms,23/12/2019,Supplies & Services,102781,FINANCE & CORPORATE SERVICES
635.00,Bounceabout,Communities,Community Development,Arts,1550,Projects & Activities,04/10/2019,Supplies & Services,100457,COMMUNITIES
632.36,Platinum Street Lighting Solutions,Neighbourhoods,Leisure Contracts & Car Parks,Edwalton Golf Courses,1400,Planned Maintenance Recharge,15/10/2019,Supplies & Services,100758,FINANCE & CORPORATE SERVICES
631.00,Broxtowe Borough Council,Finance & Corporate Services,Ict,It,4703,Subscriptions,11/11/2019,Supplies & Services,101329,TRANSFORMATION
629.07,Engineering Services Partnership Ltd,Capital Expenditure,Transformation & Innovation,Abbey Road Redevelopment,0312,Legal & Professional Services,21/10/2019,Supplies & Services,100083,CAPITAL
625.00,Bsp Consulting,Capital Expenditure,Transformation & Innovation,Abbey Road Redevelopment,0312,Legal & Professional Services,26/11/2019,Supplies & Services,101683,CAPITAL
622.00,Central Fire Systems Ltd,Transformation,Property Services,The Point,1886,Service Maintenance Contracts,23/12/2019,Premises Related Expenditure,102502,TRANSFORMATION
622.00,Jp Concrete Products Ltd,Capital Expenditure,Transformation & Innovation,Abbey Road Redevelopment,0312,Contractors-Third Party,17/12/2019,Third Party Payments,102227,CAPITAL
616.98,Reach Publishing Services Limited,Communities,Planning & Growth,Development Control,1161,Advertising,02/10/2019,Supplies & Services,100043,COMMUNITIES
612.82,Eon,Transformation,Property Services,Unit 10 Moorbridge,4788,Gas,23/12/2019,Premises Related Expenditure,102349,NEIGHBOURHOODS
610.00,A.M Goodfellow Ltd,Neighbourhoods,Waste & Fleet Management,Waste Collection,8403,Agency Staff,15/10/2019,Employee Related Expenditure,100232,NEIGHBOURHOODS
604.36,Arden Winch & Co Ltd,Neighbourhoods,Waste & Fleet Management,Waste Collection,8403,Protective Clothing/Uniforms,15/10/2019,Supplies & Services,100341,NEIGHBOURHOODS
600.00,A R Signs Ltd,Finance & Corporate Services,"Performance, Repn & Comms",Performance And Reputation,4710,External Printing,23/12/2019,Supplies & Services,102554,FINANCE & CORPORATE SERVICES
600.00,Food By Farah Ltd,Communities,Community Development,Health Development,1058,Projects & Activities,27/11/2019,Supplies & Services,101616,COMMUNITIES
600.00,Rural Retailers Ltd,Transformation,Economic Regeneration,Bingham Market Stalls,1880,Legal & Professional Services,23/12/2019,Supplies & Services,102842,TRANSFORMATION
600.00,Wellbeing Clinic Ltd,Transformation,Human Resources,Human Resources,4709,Legal & Professional Services,31/10/2019,Supplies & Services,101268,TRANSFORMATION
600.00,Wilford Lane Garage & Autocentre,Neighbourhoods,Environmental Health,Hackney Carriage/Private Hire,1031,Contractors-Transport,14/11/2019,Transport Related Expenditure,101538,NEIGHBOURHOODS
597.60,Reach Publishing Services Limited,Communities,Planning & Growth,Development Control,1161,Advertising,14/11/2019,Supplies & Services,101381,COMMUNITIES
597.60,Reach Publishing Services Limited,Communities,Planning & Growth,Development Control,1161,Advertising,26/11/2019,Supplies & Services,101864,COMMUNITIES
597.60,Reach Publishing Services Limited,Communities,Planning & Growth,Development Control,1161,Advertising,16/12/2019,Supplies & Services,102251,COMMUNITIES
594.57,Platinum Street Lighting Solutions,Communities,Community Development,Gamston Community Hall,8992,Planned Maintenance Recharge,15/10/2019,Supplies & Services,100758,COMMUNITIES
594.57,Platinum Street Lighting Solutions,Transformation,Property Services,Land Holdings,1884,Planned Maintenance Recharge,15/10/2019,Supplies & Services,100758,TRANSFORMATION
592.00,Hickling Village Hall Management Commitee,Finance & Corporate Services,Democratic Services,Borough Council Elections,1021,Hire Of Rooms,24/12/2019,Supplies & Services,102801,FINANCE & CORPORATE SERVICES
578.00,Nottingham City Council,Neighbourhoods,Waste & Fleet Management,Eastcroft Depot,4002,Olas - Nottm City Council,23/12/2019,Third Party Payments,102689,NEIGHBOURHOODS
577.35,Streetwise Environmental Ltd,Communities,Community Development,West Bridgford Town Centre,1875,Publicity & Promotion,16/12/2019,Supplies & Services,102198,TRANSFORMATION
576.00,Sherwood Farms Ltd,Neighbourhoods,Waste & Fleet Management,Glass Recycling & Bring Sites,8407,Other Equipment/Materials,05/12/2019,Supplies & Services,102252,NEIGHBOURHOODS
574.00,Xl Displays,Communities,Community Development,Community Development,1581,Projects & Activities,14/11/2019,Supplies & Services,101452,COMMUNITIES
563.84,British Gas Business,Transformation,Property Services,The Point,1886,Electricity,23/12/2019,Premises Related Expenditure,102405,TRANSFORMATION
557.76,Reach Publishing Services Limited,Communities,Planning & Growth,Development Control,1161,Advertising,19/11/2019,Supplies & Services,101640,COMMUNITIES
556.50,Central Fire Systems Ltd,Transformation,Property Services,New Offices - Cotgrave,4798,Service Maintenance Contracts,02/10/2019,Premises Related Expenditure,100049,TRANSFORMATION
551.84,Royal Mail Group Ltd,Assets,Current Assets,Parliamentary Election,7103,Postages,23/12/2019,Supplies & Services,102500,FINANCE & CORPORATE SERVICES
550.00,Access Doors Ltd,Neighbourhoods,Waste & Fleet Management,Abbey Road Depot,4001,Responsive Works - Buildings,08/10/2019,Premises Related Expenditure,100286,NEIGHBOURHOODS
550.00,Howard Ward Associates Ltd,Capital Expenditure,Transformation & Innovation,Rccc Premises 19/20,0376,Contractors-Supplies & Servs,21/10/2019,Supplies & Services,100882,CAPITAL
550.00,Mitie Pfi Ltd,Finance & Corporate Services,Democratic Services,Borough Council Elections,1021,Hire Of Rooms,24/12/2019,Supplies & Services,102797,FINANCE & CORPORATE SERVICES
548.64,Water Plus,Transformation,Economic Regeneration,Bingham Market Stalls,1880,Water Charges,15/10/2019,Premises Related Expenditure,100507,TRANSFORMATION
547.64,Reach Publishing Services Limited,Communities,Planning & Growth,Development Control,1161,Advertising,21/10/2019,Supplies & Services,100877,COMMUNITIES
547.11,Eon,Transformation,Property Services,New Offices - Cotgrave,4798,Electricity,19/11/2019,Premises Related Expenditure,101494,TRANSFORMATION
545.02,Bt Telephone Payment Centre,Finance & Corporate Services,Ict,Telephones,4870,Telephone Rental,11/10/2019,Supplies & Services,100512,TRANSFORMATION
543.62,Ninesharp Ltd,Finance & Corporate Services,Ict,It,4703,Agency Staff,23/12/2019,Employee Related Expenditure,102459,TRANSFORMATION
543.00,Temperature Control Limited,Transformation,Property Services,Arena Civic Centre,4718,Responsive Works - Buildings,19/11/2019,Premises Related Expenditure,101263,TRANSFORMATION
540.85,Maltby & Company,Communities,Community Development,Bridgford Park,8927,Responsive Works - Buildings,08/10/2019,Premises Related Expenditure,99936,COMMUNITIES
540.00,Engineering Services Partnership Ltd,Capital Expenditure,Transformation & Innovation,Abbey Road Redevelopment,0312,Legal & Professional Services,10/12/2019,Supplies & Services,102072,CAPITAL
540.00,Uk Property Rescue Ltd,Neighbourhoods,Environmental Health,Work In Default,1066,Fees & Charges - General,26/11/2019,Income,101978,NEIGHBOURHOODS
538.48,Lyreco,Communities,Community Development,Facilities Team,4714,Cleaning Equipment/Materials,15/10/2019,Supplies & Services,99579,COMMUNITIES
538.20,Electoral Reform Services,Finance & Corporate Services,Democratic Services,Electoral Registration,1026,External Printing,15/10/2019,Supplies & Services,100357,FINANCE & CORPORATE SERVICES
536.50,Ninesharp Ltd,Finance & Corporate Services,Ict,It,4703,Agency Staff,11/10/2019,Employee Related Expenditure,100162,TRANSFORMATION
536.50,Ninesharp Ltd,Finance & Corporate Services,Ict,It,4703,Agency Staff,15/10/2019,Employee Related Expenditure,100368,TRANSFORMATION
536.50,Ninesharp Ltd,Finance & Corporate Services,Ict,It,4703,Agency Staff,28/10/2019,Employee Related Expenditure,100558,TRANSFORMATION
536.50,Ninesharp Ltd,Finance & Corporate Services,Ict,It,4703,Agency Staff,28/10/2019,Employee Related Expenditure,100883,TRANSFORMATION
536.50,Ninesharp Ltd,Finance & Corporate Services,Ict,It,4703,Agency Staff,05/11/2019,Employee Related Expenditure,101050,TRANSFORMATION
536.50,Ninesharp Ltd,Finance & Corporate Services,Ict,It,4703,Agency Staff,11/11/2019,Employee Related Expenditure,101254,TRANSFORMATION
536.50,Ninesharp Ltd,Finance & Corporate Services,Ict,It,4703,Agency Staff,19/11/2019,Employee Related Expenditure,101464,TRANSFORMATION
536.00,Nuthall Electrical Services Ltd,Transformation,Property Services,Arena Civic Centre,4718,Responsive Works - Buildings,05/11/2019,Premises Related Expenditure,101216,TRANSFORMATION
535.68,Arden Winch & Co Ltd,Neighbourhoods,Waste & Fleet Management,Waste Collection,8403,Protective Clothing/Uniforms,10/12/2019,Supplies & Services,102047,NEIGHBOURHOODS
533.34,Integrity Communications Ltd,Finance & Corporate Services,Ict,It Rechargeable Costs,4722,Other Maintenance,03/12/2019,Supplies & Services,102070,TRANSFORMATION
531.88,Sellick Partnership Limited,Transformation,Legal,Legal Services,4701,Agency Staff,26/11/2019,Employee Related Expenditure,101885,FINANCE & CORPORATE SERVICES
529.20,Showsec International Limited,Communities,Community Development,West Bridgford Town Centre,1875,Publicity & Promotion,05/12/2019,Supplies & Services,102215,TRANSFORMATION
527.00,Nottingham City Council,Neighbourhoods,Waste & Fleet Management,Eastcroft Depot,4002,Olas - Nottm City Council,19/11/2019,Third Party Payments,101691,NEIGHBOURHOODS
525.00,Bridgfordian Ltd,Communities,Community Development,Community Development,1581,Projects & Activities,14/11/2019,Supplies & Services,101641,COMMUNITIES
523.75,Avanti,Neighbourhoods,Environmental Health,Public Health,1127,Legal & Professional Services,16/10/2019,Supplies & Services,100516,NEIGHBOURHOODS
520.75,Clearwater Technology Ltd,Transformation,Property Services,Arena Civic Centre,4718,Service Maintenance Contracts,19/11/2019,Premises Related Expenditure,101456,TRANSFORMATION
520.00,Streetwise Environmental Ltd,Finance & Corporate Services,Democratic Services,Members Services,1000,Grants,07/11/2019,Supplies & Services,100768,FINANCE & CORPORATE SERVICES
519.82,Royal Mail Group Ltd,Transformation,Bsu,Central Mail,4871,Postages,23/12/2019,Supplies & Services,102500,TRANSFORMATION
518.88,Frontline Communications Group Limited,Transformation,Customer Services,Customer Services,4807,Other Services,11/11/2019,Supplies & Services,101460,TRANSFORMATION
518.00,Advanced Business Solutions,Finance & Corporate Services,Financial Services,Financial Services,4705,Contractors-Supplies & Servs,16/12/2019,Supplies & Services,102190,FINANCE & CORPORATE SERVICES
518.00,Sellick Partnership Limited,Transformation,Legal,Legal Services,4701,Agency Staff,05/11/2019,Employee Related Expenditure,101089,FINANCE & CORPORATE SERVICES
518.00,Sellick Partnership Limited,Transformation,Legal,Legal Services,4701,Agency Staff,05/11/2019,Employee Related Expenditure,101266,FINANCE & CORPORATE SERVICES
518.00,Sellick Partnership Limited,Transformation,Legal,Legal Services,4701,Agency Staff,11/11/2019,Employee Related Expenditure,101478,FINANCE & CORPORATE SERVICES
518.00,Sellick Partnership Limited,Transformation,Legal,Legal Services,4701,Agency Staff,03/12/2019,Employee Related Expenditure,102065,FINANCE & CORPORATE SERVICES
518.00,Sellick Partnership Limited,Transformation,Legal,Legal Services,4701,Agency Staff,16/12/2019,Employee Related Expenditure,102282,FINANCE & CORPORATE SERVICES
518.00,Sellick Partnership Limited,Transformation,Legal,Legal Services,4701,Agency Staff,17/12/2019,Employee Related Expenditure,102508,FINANCE & CORPORATE SERVICES
516.61,Karter Thomas Limited,Neighbourhoods,Strategic Housing,Strategic Housing Ha,4789,Agency Staff,31/10/2019,Employee Related Expenditure,101068,NEIGHBOURHOODS
513.00,Ferret Information Systems,Finance & Corporate Services,Ict,It Rechargeable Costs,4722,Maintenance Contracts - S&S,23/12/2019,Supplies & Services,102397,TRANSFORMATION
510.00,Llg Legal Training,Transformation,Legal,Legal Services,4701,Training Expenses,29/10/2019,Employee Related Expenditure,100375,FINANCE & CORPORATE SERVICES
505.00,Pure Washrooms Ltd,Communities,Community Development,Gresham,8950,Maintenance Contracts - S&S,28/10/2019,Supplies & Services,100661,COMMUNITIES
504.11,Corona Energy Retail 3 Ltd,Neighbourhoods,Waste & Fleet Management,Abbey Road Depot,4001,Gas,19/11/2019,Premises Related Expenditure,101355,NEIGHBOURHOODS
503.75,West Bridgford Methodist Church,Finance & Corporate Services,Democratic Services,Borough Council Elections,1021,Hire Of Rooms,24/12/2019,Supplies & Services,102764,FINANCE & CORPORATE SERVICES
503.25,Castle Water Limited,Neighbourhoods,Leisure Contracts & Car Parks,Car Parks,1900,Water Charges,11/11/2019,Premises Related Expenditure,100650,FINANCE & CORPORATE SERVICES
503.25,Castle Water Limited,Neighbourhoods,Leisure Contracts & Car Parks,Car Parks,1900,Water Charges,11/11/2019,Premises Related Expenditure,100656,FINANCE & CORPORATE SERVICES
500.90,Arco Group,Transformation,Property Services,Property Services,4713,Protective Clothing/Uniforms,10/12/2019,Supplies & Services,99762,TRANSFORMATION
500.25,Ninesharp Ltd,Finance & Corporate Services,Ict,It,4703,Agency Staff,26/11/2019,Employee Related Expenditure,101653,TRANSFORMATION
471.13,Platinum Street Lighting Solutions,Communities,Community Development,Bridgford Park,8927,Planned Maintenance Recharge,15/10/2019,Supplies & Services,100758,COMMUNITIES
443.41,Platinum Street Lighting Solutions,Transformation,Economic Regeneration,Cotgrave Precinct,1885,Planned Maintenance Recharge,15/10/2019,Supplies & Services,100758,TRANSFORMATION
435.23,Daisy Corporate Services Trading Limited,Finance & Corporate Services,Ict,Telephones,4870,Telephone Rental,19/11/2019,Supplies & Services,101532,TRANSFORMATION
435.23,Daisy Corporate Services Trading Limited,Finance & Corporate Services,Ict,Telephones,4870,Telephone Rental,17/12/2019,Supplies & Services,102377,TRANSFORMATION
414.96,Dta Electrical,Neighbourhoods,Strategic Housing,Hostel Hound Lodge,1111,Service Maintenance Contracts,02/10/2019,Premises Related Expenditure,100143,NEIGHBOURHOODS
410.00,Dta Electrical,Transformation,Property Services,Castle Donington,1863,Planned Maintenance Recharge,03/12/2019,Supplies & Services,102039,NEIGHBOURHOODS
357.00,Grays Locksmiths Ltd,Communities,Community Development,Bridgford Park,8927,Responsive Works - Buildings,02/10/2019,Premises Related Expenditure,99799,COMMUNITIES
357.00,Grays Locksmiths Ltd,Transformation,Property Services,Arena Civic Centre,4718,Responsive Works - Buildings,02/10/2019,Premises Related Expenditure,99799,TRANSFORMATION
349.00,Local Government Association,Finance & Corporate Services,Democratic Services,Members Services,1000,Conferences - Members,31/10/2019,Supplies & Services,100895,FINANCE & CORPORATE SERVICES
349.00,Local Government Association,Finance & Corporate Services,Emt,Executive Management Team,4721,Conferences - Employees,31/10/2019,Supplies & Services,100895,FINANCE & CORPORATE SERVICES
347.50,Clearwater Technology Ltd,Communities,Community Development,Gresham,8950,Service Maintenance Contracts,19/11/2019,Premises Related Expenditure,101456,COMMUNITIES
336.90,Reach Publishing Services Limited,Communities,Planning & Growth,Conservation,1171,Advertising,21/10/2019,Supplies & Services,100599,COMMUNITIES
335.88,Reach Publishing Services Limited,Communities,Planning & Growth,Conservation,1171,Advertising,28/10/2019,Supplies & Services,100876,COMMUNITIES
238.00,Grays Locksmiths Ltd,Communities,Community Development,Alford Road,8940,Responsive Works - Buildings,02/10/2019,Premises Related Expenditure,99799,COMMUNITIES
230.00,Dta Electrical,Neighbourhoods,Strategic Housing,Hostel Hound Lodge,1111,Responsive Works - Buildings,29/11/2019,Premises Related Expenditure,101482,NEIGHBOURHOODS
225.00,Clearwater Technology Ltd,Neighbourhoods,Waste & Fleet Management,Abbey Road Depot,4001,Service Maintenance Contracts,19/11/2019,Premises Related Expenditure,101456,NEIGHBOURHOODS
213.75,Clearwater Technology Ltd,Communities,Community Development,Alford Road,8940,Service Maintenance Contracts,19/11/2019,Premises Related Expenditure,101456,COMMUNITIES
213.75,Clearwater Technology Ltd,Neighbourhoods,Strategic Housing,Hostel Hound Lodge,1111,Service Maintenance Contracts,19/11/2019,Premises Related Expenditure,101456,NEIGHBOURHOODS
199.20,Reach Publishing Services Limited,Communities,Planning & Growth,Conservation,1171,Advertising,16/12/2019,Supplies & Services,102251,COMMUNITIES
191.52,Dta Electrical,Communities,Community Development,Alford Road,8940,Service Maintenance Contracts,02/10/2019,Premises Related Expenditure,100143,COMMUNITIES
191.25,Clearwater Technology Ltd,Communities,Community Development,West Park,8994,Service Maintenance Contracts,19/11/2019,Premises Related Expenditure,101456,COMMUNITIES
189.84,Reach Publishing Services Limited,Communities,Planning & Growth,Conservation,1171,Advertising,21/10/2019,Supplies & Services,100381,COMMUNITIES
189.82,Grays Locksmiths Ltd,Communities,Community Development,Gresham,8950,Responsive Works - Buildings,02/10/2019,Premises Related Expenditure,99799,COMMUNITIES
189.20,Reach Publishing Services Limited,Communities,Planning & Growth,Conservation,1171,Advertising,17/12/2019,Supplies & Services,102479,COMMUNITIES
178.88,Platinum Street Lighting Solutions,Transformation,Economic Regeneration,Bingham Market Stalls,1880,Planned Maintenance Recharge,15/10/2019,Supplies & Services,100758,TRANSFORMATION
178.88,Platinum Street Lighting Solutions,Transformation,Property Services,Hollygate Lane Ph1 (Manvers),1895,Planned Maintenance Recharge,15/10/2019,Supplies & Services,100758,TRANSFORMATION
178.88,Platinum Street Lighting Solutions,Transformation,Property Services,Hollygate Lane Ph2 (Manvers),1896,Planned Maintenance Recharge,15/10/2019,Supplies & Services,100758,TRANSFORMATION
178.88,Platinum Street Lighting Solutions,Transformation,Property Services,Hollygate Lane Ph3 (Manvers),1897,Planned Maintenance Recharge,15/10/2019,Supplies & Services,100758,TRANSFORMATION
170.00,Dta Electrical,Communities,Community Development,Gresham,8950,Responsive Works - Buildings,29/11/2019,Premises Related Expenditure,101482,COMMUNITIES
166.00,Reach Publishing Services Limited,Communities,Planning & Growth,Conservation,1171,Advertising,05/12/2019,Supplies & Services,102049,COMMUNITIES
160.00,Dta Electrical,Communities,Community Development,Lutterell Hall,8990,Planned Maintenance Recharge,29/11/2019,Supplies & Services,101482,COMMUNITIES
160.00,Dta Electrical,Transformation,Property Services,Castle Donington,1863,Service Maintenance Contracts,03/12/2019,Premises Related Expenditure,102039,NEIGHBOURHOODS
159.60,Dta Electrical,Communities,Community Development,Gresham,8950,Service Maintenance Contracts,02/10/2019,Premises Related Expenditure,100143,COMMUNITIES
157.26,Reach Publishing Services Limited,Communities,Planning & Growth,Conservation,1171,Advertising,29/10/2019,Supplies & Services,101054,COMMUNITIES
146.75,Clearwater Technology Ltd,Communities,Community Development,Lutterell Hall,8990,Service Maintenance Contracts,19/11/2019,Premises Related Expenditure,101456,COMMUNITIES
141.09,Platinum Street Lighting Solutions,Communities,Community Development,Parks & Playing Fields-Gen,8910,Planned Maintenance Recharge,15/10/2019,Supplies & Services,100758,COMMUNITIES
139.44,Reach Publishing Services Limited,Communities,Planning & Growth,Conservation,1171,Advertising,19/11/2019,Supplies & Services,101640,COMMUNITIES
135.00,Clearwater Technology Ltd,Communities,Community Development,Rushcliffe Country Park,1375,Service Maintenance Contracts,19/11/2019,Premises Related Expenditure,101456,COMMUNITIES
132.80,Reach Publishing Services Limited,Communities,Planning & Growth,Conservation,1171,Advertising,05/11/2019,Supplies & Services,101251,COMMUNITIES
127.68,Dta Electrical,Communities,Community Development,Rushcliffe Country Park,1375,Service Maintenance Contracts,02/10/2019,Premises Related Expenditure,100143,COMMUNITIES
123.75,Clearwater Technology Ltd,Communities,Community Development,Sir Julien Cahn Pavilion,8993,Service Maintenance Contracts,19/11/2019,Premises Related Expenditure,101456,COMMUNITIES
119.00,Grays Locksmiths Ltd,Communities,Community Development,West Park,8994,Responsive Works - Buildings,02/10/2019,Premises Related Expenditure,99799,COMMUNITIES
112.50,Clearwater Technology Ltd,Communities,Community Development,Gamston Community Hall,8992,Service Maintenance Contracts,19/11/2019,Premises Related Expenditure,101456,COMMUNITIES
111.72,Dta Electrical,Communities,Community Development,West Park,8994,Service Maintenance Contracts,02/10/2019,Premises Related Expenditure,100143,COMMUNITIES
100.00,Dta Electrical,Transformation,Property Services,Bridgford Hall,1883,Responsive Works - Buildings,02/10/2019,Premises Related Expenditure,100143,TRANSFORMATION
99.60,Reach Publishing Services Limited,Communities,Planning & Growth,Conservation,1171,Advertising,14/11/2019,Supplies & Services,101381,COMMUNITIES
99.60,Reach Publishing Services Limited,Communities,Planning & Growth,Conservation,1171,Advertising,26/11/2019,Supplies & Services,101864,COMMUNITIES
90.00,Dta Electrical,Communities,Community Development,Sir Julien Cahn Pavilion,8993,Planned Maintenance Recharge,29/11/2019,Supplies & Services,101482,COMMUNITIES
79.80,Dta Electrical,Communities,Community Development,Gamston Community Hall,8992,Service Maintenance Contracts,02/10/2019,Premises Related Expenditure,100143,COMMUNITIES
79.80,Dta Electrical,Communities,Community Development,Lutterell Hall,8990,Service Maintenance Contracts,02/10/2019,Premises Related Expenditure,100143,COMMUNITIES
75.00,Dta Electrical,Transformation,Property Services,Arena Civic Centre,4718,Other Equipment/Materials,02/10/2019,Supplies & Services,100143,TRANSFORMATION
71.95,Daisy Corporate Services Trading Limited,Finance & Corporate Services,Ict,Telephones,4870,Telephone Call Charges,17/12/2019,Supplies & Services,102377,TRANSFORMATION
70.92,Daisy Corporate Services Trading Limited,Finance & Corporate Services,Ict,Telephones,4870,Telephone Call Charges,19/11/2019,Supplies & Services,101532,TRANSFORMATION
69.00,Nottingham City Council,Finance & Corporate Services,Democratic Services,Members Services,1000,Legal & Professional Services,21/10/2019,Supplies & Services,99670,FINANCE & CORPORATE SERVICES
63.96,Dta Electrical,Communities,Community Development,Sir Julien Cahn Pavilion,8993,Service Maintenance Contracts,02/10/2019,Premises Related Expenditure,100143,COMMUNITIES
60.00,Dta Electrical,Communities,Community Development,Rushcliffe Country Park,1375,Planned Maintenance Recharge,29/11/2019,Supplies & Services,101482,COMMUNITIES
37.24,Edenred,Transformation,Human Resources,Human Resources,4709,Flexible Benefits,15/10/2019,Employee Related Expenditure,100606,TRANSFORMATION
33.24,Edenred,Transformation,Human Resources,Human Resources,4709,Flexible Benefits,14/11/2019,Employee Related Expenditure,101610,TRANSFORMATION
33.24,Edenred,Transformation,Human Resources,Human Resources,4709,Flexible Benefits,17/12/2019,Employee Related Expenditure,102446,TRANSFORMATION
15.96,Dta Electrical,Transformation,Property Services,Arena Civic Centre,4718,Service Maintenance Contracts,02/10/2019,Premises Related Expenditure,100143,TRANSFORMATION
9.90,Daisy Corporate Services Trading Limited,Finance & Corporate Services,Ict,Telephones,4870,Telephone Rental,19/11/2019,Supplies & Services,101471,TRANSFORMATION
"28,887,301.00",,,,,,,,,,
